Cogmind - Beta 10.2 @@@ ROGUE MODE // 2020.11.12 @ 20:02:18 Player: FLKFarcomwardrone Result: Escaped singularity! Performance ------------- Evolutions (9) 4500 Regions Visited (32) 6400 Robots Destroyed (223) 1115 Value Destroyed (10843) 10843 Prototype IDs (137) 2740 Alien Tech Used (6) 1200 Bonus (56234) 56234 TOTAL SCORE: 83032 Bonus ------- High Alert Combat Kills 513 Follower Combat Kills 7373 Network Hubs Disabled 400 Aligned with FarCom 300 Met Data Miner 300 Met Zhirov 300 Met Warlord at Base 500 MAIN.C Attacked Warlord 500 Warlord Defense Kill 1822 Found Hidden Lab 3000 Used Core Reset Matrix 3000 Met Warlord at Research 2000 Destroyed MAIN.C Guards 500 Met MAIN.C 5000 Destroyed MAIN.C Shell 5000 Destroyed MAIN.C 10000 Met Warlord at Command 2000 Met Architect 300 Destroyed A8 300 Destroyed A6 400 Destroyed A4 700 Destroyed A3 800 Destroyed A2 1000 Destroyed Architect 15000 Win 3000 Friendly Fire -7774 Cogmind --------- Core Integrity 581/1600 Matter 249/300 Energy 1390/1400 System Corruption 6% Temperature Cool (10) Movement Hovering (44) Location Near Former Tau Ceti IV Parts ------- > --- POWER (2) -------- Improved Quantum Reactor Improved Quantum Reactor > --- PROPULSION (5) --- Combat Linear Gravjet Combat Linear Gravjet Combat Linear Gravjet Combat Linear Gravjet Combat Linear Gravjet > --- UTILITY (17) ----- Experimental Power Amplifier Experimental Power Amplifier Experimental Power Amplifier Advanced Energy Well Dimensional Manipulator Experimental Melee Analysis Suite Experimental Melee Analysis Suite Experimental Armor Integrity Analyzer Femtoactuators Centrium Linked Plating Centrium Linked Plating Centrium Linked Plating Experimental Focal Shield Experimental Thermal Shield Experimental Shock Absorption System Energy Mantle > --- WEAPON (2) ------- Nanosword Nanosword > --- INVENTORY (4) ---- Antimatter Reactor Experimental Gyrokinetic Inverter Experimental Gyrokinetic Inverter Peak State ------------ > --- POWER ------------ Improved Quantum Reactor Zero-point Reactor > --- PROPULSION ------- Experimental Gyrokinetic Inverter Experimental Gyrokinetic Inverter Experimental Gyrokinetic Inverter Cooled Linear Gravjet Cooled Linear Gravjet > --- UTILITY ---------- Experimental Power Amplifier Advanced Energy Well Experimental Melee Analysis Suite Experimental Armor Integrity Analyzer Femtoactuators Advanced Overload Amplifier Advanced Phase Shifter Wardrone Bay > --- WEAPON ----------- Sigix Broadsword > --- INVENTORY -------- Improved Fusion Compressor Advanced Matter Compressor Nanosword [Rating: 294] Favorites ----------- Power Improved Quantum Reactor Engine Heavy Deuterium Engine Power Core Micro Fission Core Reactor Improved Quantum Reactor Propulsion Combat Linear Gravjet Treads Light Treads Leg Enhanced Flexi-carbon Leg Wheel Armored Wheel Hover Unit Combat Linear Gravjet Flight Unit Cooled Q-thruster Utility Large Storage Unit Device Mapping Drone Bay Storage Large Storage Unit Processor Experimental Melee Analysis Suite Hackware System Mapper Protection Centrium Medium Armor Plating Weapon Heavy Missile Launcher Energy Gun EM Pulse Gun Energy Cannon Enhanced Nova Cannon Ballistic Gun Hypervelocity Gauss Rifle Launcher Heavy Missile Launcher Special Weapon Field Lobotomy Kit Slashing Weapon Nanosword Piercing Weapon Vortex Lance Special Melee Weapon Advanced Datajack Build | -11 -10 -10 -10 -9 -8 -7 -7 -7 -7 -6 -6 -6 -6 -6 -6 -5 -5 -5 -5 -4 -4 -4 -4 -4 -3 -3 -3 -3 -2 -1 -1 -1 ------- Run | Scr Mat Min Exi Min Mat Fac Low Low Dat Pro Fac Ext Cet Arc Hub Fac Upp Upp Zhi Pro Fac Upp Upp War Pro Res Arm Lab Res Acc Com Ac0 Slots Evolved 17 | . . . . . 4 2 . . . . 2 . . . . 2 . . . . 2 . . . . 2 . . 2 1 . . Power 1 | . . . . . . . . . . . . . . . . 1 . . . . . . . . . . . . . . . . Propulsion 2 | . . . . . 1 . . . . . . . . . . 1 . . . . . . . . . . . . . . . . Utility 14 | . . . . . 3 2 . . . . 2 . . . . . . . . . 2 . . . . 2 . . 2 1 . . Weapon . | . . . . . . . . . . . . . . . . . . . . . . . . . . . . . . . . . Parts Attached 419 | 7 11 6 2 3 26 29 11 3 8 11 13 16 7 17 1 8 1 2 6 1 4 . 1 23 1 19 37 7 7 9 40 82 Power 26 | 1 1 . . . 1 1 . . . . . 2 . 1 . . . 1 . . . . . 5 . . 4 . 1 . 1 7 Engine 7 | 1 1 . . . 1 1 . . . . . 2 . . . . . 1 . . . . . . . . . . . . . . Core 1 | . . . . . . . . . . . . . . 1 . . . . . . . . . . . . . . . . . . Reactor 18 | . . . . . . . . . . . . . . . . . . . . . . . . 5 . . 4 . 1 . 1 7 Propulsion 82 | 2 . 1 1 1 5 5 2 1 . . 1 4 1 6 . 1 . . 3 1 . . . 6 . . 10 . 1 1 3 26 Treads 21 | 2 . 1 1 . 3 3 2 1 . . . 4 1 3 . . . . . . . . . . . . . . . . . . Leg 3 | . . . . . 1 . . . . . . . . . . . . . . . . . . . . . . . . . . 2 Wheel 4 | . . . . 1 1 1 . . . . 1 . . . . . . . . . . . . . . . . . . . . . Hover 53 | . . . . . . 1 . . . . . . . 3 . 1 . . 3 1 . . . 6 . . 10 . 1 1 3 23 Flight 1 | . . . . . . . . . . . . . . . . . . . . . . . . . . . . . . . . 1 Utility 191 | 2 1 2 . . 9 9 6 2 2 8 7 1 4 5 1 4 1 . 3 . 2 . . 10 1 11 17 4 4 6 28 41 Device 88 | 1 . . . . 2 2 3 2 1 6 2 . . . . 1 1 . 2 . 1 . . 4 1 4 11 2 1 2 13 26 Storage 28 | . 1 1 . . 2 3 3 . . . . . 1 2 . . . . . . . . . 3 . 4 2 . 1 1 . 4 Processor 9 | 1 . . . . . 1 . . 1 . . . . . . . . . . . . . . . . 1 1 . . . 2 2 Hackware 15 | . . . . . 2 . . . . . 4 . . 2 1 . . . . . 1 . . . . . 2 . 2 1 . . Protection 51 | . . 1 . . 3 3 . . . 2 1 1 3 1 . 3 . . 1 . . . . 3 . 2 1 2 . 2 13 9 Artifact . | . . . . . . . . . . . . . . . . . . . . . . . . . . . . . . . . . Weapon 120 | 2 9 3 1 2 11 14 3 . 6 3 5 9 2 5 . 3 . 1 . . 2 . 1 2 . 8 6 3 1 2 8 8 Energy Gun 9 | 1 4 1 . . . 1 . . . . . . . . . . . . . . . . . . . . . 1 . . 1 . Energy Cannon 14 | . . . . 1 4 1 . . . . 1 1 . . . 1 . . . . . . . . . . 2 2 . . . 1 Ballistic Gun 25 | 1 2 1 1 1 1 4 1 . 2 1 1 3 2 3 . . . . . . 1 . . . . . . . . . . . Ballistic Cannon . | . . . . . . . . . . . . . . . . . . . . . . . . . . . . . . . . . Launcher 27 | . . 1 . . 4 1 1 . 1 1 1 3 . . . . . 1 . . 1 . . . . 4 3 . 1 1 2 1 Special Weapon 9 | . 3 . . . . 2 . . 2 . . 1 . . . . . . . . . . . . . . . . . . 1 . Impact Weapon . | . . . . . . . . . . . . . . . . . . . . . . . . . . . . . . . . . Slashing Weapon 27 | . . . . . 2 5 1 . 1 1 2 1 . 1 . . . . . . . . 1 . . . 1 . . 1 4 6 Piercing Weapon 7 | . . . . . . . . . . . . . . . . 1 . . . . . . . 2 . 4 . . . . . . Special Melee Weapon 2 | . . . . . . . . . . . . . . 1 . 1 . . . . . . . . . . . . . . . . Unidentified Prototypes 47 | . . . . . . 1 . . . 1 2 . 3 1 . . . . 2 . . . . 4 . . 7 2 . . 4 20 Parts Lost 26 | . . . . . 1 3 . . . . . 1 . . . . . . . . . . . 1 . 1 . . . . 2 17 Power 3 | . . . . . . . . . . . . 1 . . . . . . . . . . . . . . . . . . . 2 Propulsion 8 | . . . . . . 1 . . . . . . . . . . . . . . . . . . . . . . . . . 7 Utility 14 | . . . . . 1 2 . . . . . . . . . . . . . . . . . 1 . 1 . . . . 2 7 Weapon 1 | . . . . . . . . . . . . . . . . . . . . . . . . . . . . . . . . 1 Highest Loss Streak 7 | . . . . . 1 2 . . . . . 1 . . . . . . . . . . . 1 . 1 . . . . 2 7 Average Slot Usage (%) 92 | . 100 100 100 100 93 94 91 92 91 91 92 98 93 92 100 98 94 94 94 94 94 95 95 93 95 87 96 97 96 100 72 81 Engine 4 | . 14 14 14 14 9 7 7 7 7 7 6 4 6 . . 4 5 5 5 5 5 5 5 1 . . . . . . . . Reactor 2 | . . . . . . . . . . . . . . . . . . . . . . . . 6 10 9 7 8 8 7 7 6 Treads 10 | . 28 28 28 16 16 15 23 23 23 21 12 17 12 11 . . . . . . . . . . . . . . . . . . Wheel 1 | . . . . 11 9 6 . . . . 5 . . . . . . . . . . . . . . . . . . . . . Hover 8 | . . . . . . . . . . . . . . . 18 22 22 22 22 22 20 20 20 20 20 18 17 17 18 19 19 18 Device 10 | . 14 10 . . 5 11 11 7 5 9 11 6 1 . . . 11 11 11 11 14 15 15 13 14 16 13 14 16 17 13 25 Storage 15 | . 12 14 14 14 12 15 25 30 30 28 25 25 25 24 12 5 5 5 5 5 5 5 5 11 10 13 14 17 16 17 5 3 Processor 1 | . 1 . . . . 3 . . 1 . . . . . . . . . . . . . . . . . 2 . . . 6 9 Hackware 11 | . . . . . 5 6 . . . . 6 25 19 18 34 28 22 22 22 22 24 25 25 25 25 18 23 21 22 19 3 . Protection 9 | . . 3 14 14 16 8 7 7 7 7 11 6 14 18 14 19 11 11 11 11 10 10 10 5 5 9 6 6 8 10 6 9 Energy Cannon 1 | . . . . 11 6 1 . . . . . . 2 . . 1 . . . . . . . . . . 1 3 . . . . Ballistic Gun 2 | . 18 7 7 2 2 2 3 . . 5 5 6 9 11 6 . . . . . 1 5 . . . . . . . . . . Launcher 4 | . . 12 14 14 7 4 7 7 3 7 3 2 . . . . . 5 5 5 4 5 5 5 5 . 2 . 3 3 . . Slashing Weapon 2 | . . . . . 1 2 3 7 5 1 2 1 . . 6 5 5 5 5 5 3 . 4 1 . . 1 4 4 3 6 3 Naked Turns . | . . . . . . . . . . . . . . . . . . . . . . . . . . . . . . . . . Heaviest Build 151 | 8 14 22 22 23 54 88 101 101 103 104 104 88 101 102 54 52 51 52 52 52 60 60 60 93 93 107 119 121 121 139 151 126 Greatest Support 185 | 40 40 40 40 40 12 60 65 65 62 62 62 66 103 103 57 76 76 76 64 88 88 60 60 104 104 124 128 128 144 160 160 185 Greatest Overweight (x) 10 | . . . . 1 4 5 1 1 1 1 10 7 2 1 . . . . . . . . . 1 . 1 1 . . . . 1 Average Overweight (x) . | . . . . . 2 2 1 1 1 1 8 1 . . . . . . . . . . . . . . . . . . . . Largest Inventory Capacity 28 | 4 6 8 8 8 10 20 26 26 26 26 26 26 26 26 10 10 10 10 10 10 10 10 10 14 14 16 22 22 22 28 28 10 Average Capacity 16 | 4 5 6 8 8 8 15 23 26 26 26 26 26 26 25 10 10 10 10 10 10 10 10 10 13 14 15 21 22 22 25 14 5 Most Carried 28 | 4 6 8 8 8 10 19 26 26 26 26 26 26 26 26 10 10 10 10 10 10 10 10 10 14 14 16 22 22 22 28 28 10 Average Carried 15 | 1 5 6 7 7 8 14 22 25 25 25 25 24 25 24 9 8 10 9 9 10 9 10 10 13 14 14 20 18 21 24 13 4 Final Capacity 28 | 4 6 8 8 8 10 20 26 26 26 26 26 26 26 10 10 10 10 10 10 10 10 10 10 14 14 16 22 22 22 28 10 4 Final Carried 28 | 4 6 7 8 8 10 19 26 26 26 26 26 26 26 10 9 10 10 9 10 10 10 10 10 14 14 16 22 22 22 28 6 3 Class Distribution -------------------- 40% | Wizard-Mutant 18% | Hauler-Mutant 17% | Mutant 6% | Machinist-Mutant 3% | Derelict-Mutant 3% | Scavenger-Gladiator Dominant Class ---------------- Mutant | -10/Materials Mutant | -10/Mines Mutant | -10/Exiles Derelict-Mutant | -9/Mines Mutant | -8/Materials Mutant | -7/Factory Hauler-Mutant | -7/Lower Caves Hauler-Mutant | -7/Lower Caves Hauler-Mutant | -7/Data Miner Hauler-Mutant | -6/Proximity Caves Hauler-Mutant | -6/Factory Wizard-Mutant | -6/Extension Wizard-Mutant | -6/Cetus Wizard-Mutant | -6/Archives Wizard-Sprinter | -6/Hub_04(d) Wizard-Mutant | -5/Factory Wizard-Mutant | -5/Upper Caves Wizard-Mutant | -5/Upper Caves Wizard-Mutant | -5/Zhirov Wizard-Mutant | -4/Proximity Caves Wizard-Scout | -4/Factory Wizard-Mutant | -4/Upper Caves Wizard-Mutant | -4/Upper Caves Wizard-Mutant | -4/Warlord Wizard-Mutant | -3/Proximity Caves Wizard-Mutant | -3/Research Wizard-Mutant | -3/Armory Wizard-Mutant | -3/Lab Wizard-Mutant | -2/Research Wizard-Mutant | -1/Access Machinist-Mutant | -1/Command Scavenger-Gladiator | -1/Access_0 Resources | -11 -10 -10 -10 -9 -8 -7 -7 -7 -7 -6 -6 -6 -6 -6 -6 -5 -5 -5 -5 -4 -4 -4 -4 -4 -3 -3 -3 -3 -2 -1 -1 -1 ----------- Run | Scr Mat Min Exi Min Mat Fac Low Low Dat Pro Fac Ext Cet Arc Hub Fac Upp Upp Zhi Pro Fac Upp Upp War Pro Res Arm Lab Res Acc Com Ac0 Matter Collected 8631 | 331 58 190 217 80 392 696 338 128 30 374 140 645 190 245 130 70 20 40 70 30 120 180 90 445 315 153 453 161 180 60 441 1619 Remotely 176 | . . . . . 176 . . . . . . . . . . . . . . . . . . . . . . . . . . . Salvage Created 8670 | 177 108 158 . 56 348 494 229 85 30 181 140 416 412 40 . 232 . 49 177 91 68 . 87 529 238 120 106 70 184 642 430 2773 Parts 444 | 15 6 6 . 6 26 31 9 4 6 6 2 14 21 5 . 13 . 2 . 7 5 . 7 41 14 16 11 6 16 21 7 121 Haulers Intercepted 5 | . 1 . . . . . . . . . . . . . . . . . . . . . . . . . . . . 4 . . Recyclers Shooed 2 | . . . . . . 2 . . . . . . . . . . . . . . . . . . . . . . . . . . Parts Field Recycled . | . . . . . . . . . . . . . . . . . . . . . . . . . . . . . . . . . Retrieved Matter . | . . . . . . . . . . . . . . . . . . . . . . . . . . . . . . . . . Parts Self-Destructed 240 | . . . . . . . 7 5 . 4 . . . . . . 1 3 . 7 . 15 18 174 6 . . . . . . . Prevented 29 | . . . . . . . . . . 1 . . . . . . . 1 . . . . . 27 . . . . . . . . Kills | -11 -10 -10 -10 -9 -8 -7 -7 -7 -7 -6 -6 -6 -6 -6 -6 -5 -5 -5 -5 -4 -4 -4 -4 -4 -3 -3 -3 -3 -2 -1 -1 -1 ------- Run | Scr Mat Min Exi Min Mat Fac Low Low Dat Pro Fac Ext Cet Arc Hub Fac Upp Upp Zhi Pro Fac Upp Upp War Pro Res Arm Lab Res Acc Com Ac0 Combat Hostiles Destroyed 171 | . 1 4 . 6 12 11 9 3 . 8 2 8 4 . . . . 1 . 8 3 . 4 19 12 8 3 1 9 1 3 31 Melee 36 | . . . . . . 1 . . . . . 3 . . . . . . . . . . . . . . . 1 1 1 3 26 Guns 16 | . 1 2 . . . 4 . . . 3 1 1 4 . . . . . . . . . . . . . . . . . . . Cannons 4 | . . . . . 1 2 . . . . 1 . . . . . . . . . . . . . . . . . . . . . AOE 114 | . . 2 . 6 11 4 9 3 . 5 . 3 . . . . . 1 . 8 3 . 4 19 12 8 3 . 8 . . 5 Classes Destroyed 21 | 3 3 . . 1 3 3 2 . . 1 . . . . . . . . . . . . . 3 . . . . 1 . 1 . Worker 5 | 1 . . . . . 1 . . . . . . . . . 1 . . . . 2 . . . . . . . . . . . Builder 8 | . 1 . . . . 2 . . . . . 1 . . . 2 . . . . . . . . . 1 . . 1 . . . Tunneler 7 | 4 . . . 1 1 . . . . . 1 . . . . . . . . . . . . . . . . . . . . . Hauler 5 | . 1 . . . . . . . . . . . . . . . . . . . . . . . . . . . . 4 . . Recycler 5 | 1 . . . . 1 1 . . . . . . . . . 1 . . . . . . . . . . . . . 1 . . Minesweeper 2 | . . . . . . . 1 . . 1 . . . . . . . . . . . . . . . . . . . . . . Mechanic 1 | . . . . . . . . . . . . . . . . . . . . . . . . . . . . . 1 . . . Operator 5 | . . . . . 1 . . . . . . . . 1 . . . . . . 1 . . . . . 2 . . . . . Watcher 5 | . . . . . 2 1 . . . . . . . . . . . . . . . . . . . . 1 . . 1 . . Swarmer 67 | . . . . 3 6 1 4 . . . . . 3 . . 1 . . . 8 3 . 3 6 8 8 3 . 9 . 1 . Saboteur 4 | . . . . . . . . . . . . . . . . . . . . . . . . 4 . . . . . . . . Grunt 33 | . 1 4 . 3 4 5 . 2 . 6 . 3 . . . . . . . . . . 1 2 2 . . . . . . . Brawler 2 | . . . . . . 1 . . . 1 . . . . . . . . . . . . . . . . . . . . . . Duelist 1 | . . . . . . . . . . 1 . . . . . . . . . . . . . . . . . . . . . . Protector 1 | . . . . . . . . . . . . . . . . . . . . . . . . 1 . . . . . . . . Sentry 10 | . . . . . 2 1 . . . . 1 5 . . . . . . . . . . . . . . . . . 1 . . Hunter 3 | . . . . . . 1 . 1 . . . . . . . . . . . . . . . 1 . . . . . . . . Programmer 10 | . . . . . . 2 . . . . 1 . . . . . . 1 . . . . . 4 2 . . . . . . . Cetus Guard 1 | . . . . . . . . . . . . . 1 . . . . . . . . . . . . . . . . . . . M Guard 1 | . . . . . . . . . . . . . . . . . . . . . . . . . . . . . . . 1 . Enhanced Grunt 19 | . . . . . . . . . . . . . . . . . . . . . . . . . . . . . . . . 19 Enhanced Sentry 1 | . . . . . . . . . . . . . . . . . . . . . . . . . . . . . . . . 1 Enhanced Hunter 6 | . . . . . . . . . . . . . . . . . . . . . . . . . . . . . . . . 6 Combat Programmer 1 | . . . . . . . . . . . . . . . . . . . . . . . . . . . . . . . 1 . Executioner 1 | . . . . . . . . . . . . . . . . . . . . . . . . 1 . . . . . . . . Thug 4 | . . . . . . . 3 . . . . . 1 . . . . . . . . . . . . . . . . . . . Savage 3 | . . . . . . . 1 . . . . . 2 . . . . . . . . . . . . . . . . . . . Butcher 1 | . . . . . . . . . . . . 1 . . . . . . . . . . . . . . . . . . . . Martyr 2 | . . . . . . . . . . . . . . . . . . . . . . . . . . . . . . . 2 . Mutant 1 | . . . . . . . 1 . . . . . . . . . . . . . . . . . . . . . . . . . Best Kill Streak 11 | 3 1 2 . 3 6 6 4 2 . 3 1 3 3 1 . 3 . 1 . 8 6 . 3 6 10 4 3 1 11 5 2 7 Combat Bots Only 10 | . 1 2 . 3 6 2 4 2 . 3 1 3 3 . . . . 1 . 8 3 . 3 6 10 4 3 1 9 1 2 7 Max Kills in Single Turn 6 | 1 1 1 . 2 3 2 2 1 1 2 1 1 1 1 . 1 . 1 . 2 3 . 3 6 3 3 1 1 3 1 1 2 Gunslinging . | . . . . . . . . . . . . . . . . . . . . . . . . . . . . . . . . . Exploded 6 | . . 1 . 2 3 1 2 1 . 2 . 1 . . . . . 1 . 2 2 . 3 6 3 3 1 . 3 . . 2 Melee 1 | . . . . . . 1 . . . . . 1 . . . . . . . . . . . . . . . 1 1 1 1 1 Uniques/NPCs Destroyed 11 | . . . . . . . . . 1 . . . 1 . . . . . . . . . . . . . . 1 . . 2 6 Data Miner (-7/Data Miner) A7 (-6/Cetus) A5 (-3/Lab) MAIN.C Shell (-1/Command) MAIN.C (-1/Command) A8 (-1/Access_0) A6 (-1/Access_0) A4 (-1/Access_0) A2 (-1/Access_0) A3 (-1/Access_0) Architect (-1/Access_0) Combat | -11 -10 -10 -10 -9 -8 -7 -7 -7 -7 -6 -6 -6 -6 -6 -6 -5 -5 -5 -5 -4 -4 -4 -4 -4 -3 -3 -3 -3 -2 -1 -1 -1 -------- Run | Scr Mat Min Exi Min Mat Fac Low Low Dat Pro Fac Ext Cet Arc Hub Fac Upp Upp Zhi Pro Fac Upp Upp War Pro Res Arm Lab Res Acc Com Ac0 Damage Taken 15328 | 3 20 160 . 176 148 1734 242 56 . 322 77 776 1192 . 33 16 20 . . 101 122 . 118 311 33 301 182 96 62 45 2042 6940 Core 1326 | 3 . 16 . 40 17 202 . . . . 6 113 18 . . . . . . . . . . . . 22 50 13 . . . 826 Absorbed by Shields 3296 | . . . . . . 149 . . . . . 28 . . . . . . . . . . . 126 10 318 122 102 60 44 101 2236 Reduced by Siege Mode 44 | . . . . . . . . . . . . . 44 . . . . . . . . . . . . . . . . . . . Core Remaining (%) 84 | 98 . . . 76 96 . . . . 71 . . . . 83 . . . . 100 . . . . 100 . . 88 100 . . 36 Volleys Fired 359 | 23 9 16 . 10 25 31 12 7 7 17 15 23 29 3 8 14 . 2 . 5 30 1 4 13 15 7 8 10 6 . 2 7 Largest 2 | 1 2 2 . 2 2 2 2 1 1 2 2 2 2 1 1 1 . 1 . 1 1 1 1 1 1 1 1 1 1 . 1 1 Hottest 138 | 20 100 73 . 60 138 108 67 39 28 67 98 98 98 33 33 90 . 30 . 30 80 80 80 80 80 80 120 120 80 . 75 55 Shots Fired 442 | 23 13 26 . 11 33 45 15 7 7 21 18 31 58 3 8 14 . 2 . 5 30 1 4 13 15 7 8 10 6 . 2 6 Gun 206 | 23 9 20 . 1 10 24 3 . 1 6 9 15 47 3 8 . . . . . 26 . . . . . . . . . 1 . Cannon 70 | . . . . 1 9 11 . . . . 6 4 11 . . 14 . . . . . . . . . . 4 10 . . . . Launcher 152 | . . 6 . 9 14 9 12 7 . 15 3 10 . . . . . 2 . 5 4 1 4 13 15 7 4 . 6 . . 6 Special 14 | . 4 . . . . 1 . . 6 . . 2 . . . . . . . . . . . . . . . . . . 1 . Kinetic 177 | 23 5 8 . 1 10 12 3 . 1 6 9 15 47 3 8 . . . . . 26 . . . . . . . . . . . Thermal 87 | . 4 . . 1 5 23 . . 5 . 6 4 11 . . 14 . . . . . . . . . . 4 10 . . . . Explosive 152 | . . 6 . 9 14 9 12 7 . 15 3 10 . . . . . 2 . 5 4 1 4 13 15 7 4 . 6 . . 6 Electromagnetic 21 | . 4 12 . . 4 . . . . . . . . . . . . . . . . . . . . . . . . . 1 . Robot Hit Streak 28 | 8 5 8 . 3 7 12 6 7 4 12 7 13 19 2 2 . . 4 . 2 5 2 5 10 12 16 19 . 21 . 22 28 Robot Miss Streak 8 | 2 1 2 . 1 3 3 2 1 . 3 1 2 8 1 1 . . . . 1 1 . . . . . . . . . . . Penetration Max 1 | . . . . . . . . . . . . . 1 . . . . . . . . . . . . . . . . . . . Secondary Targets 1 | . . 1 . . . . . . . . . . . . . . . . . . . . . . . . . . . . . . Max Gunslinging Chain 1 | . . 1 . . . . . . . . . . . . . . . . . . . . . . . . . . . . . . Shots Hit Robots 637 | 18 6 17 . 6 21 33 11 4 1 20 13 29 45 3 2 11 . 2 2 3 6 1 3 5 2 5 8 20 6 10 74 250 Core Hits 568 | 8 4 8 . 11 32 41 18 5 4 32 4 28 55 2 2 5 . 2 1 13 10 1 10 63 25 12 6 4 15 8 26 113 Critical Hits 33 | . . . . . . . . . . . 2 6 1 1 3 1 . . . . . . . . . . . 1 . . 1 17 Critical Kills 12 | . . . . . . . . . . . 1 1 1 1 . 1 . . . . . . . . . . . . . . . 7 Critical Parts Destroyed 18 | . . . . . . . . . . . 1 5 . . 3 . . . . . . . . . . . . 1 . . 1 7 Melee Attacks 591 | . . . . . 9 13 2 . 5 10 12 17 . 1 2 20 2 . 2 . 3 . . 2 1 8 21 43 11 13 108 286 Impact . | . . . . . . . . . . . . . . . . . . . . . . . . . . . . . . . . . Slashing 554 | . . . . . 9 13 2 . 5 10 12 17 . . 2 15 1 . 2 . 3 . . 2 . . . 43 11 13 108 286 Piercing 29 | . . . . . . . . . . . . . . . . 1 1 . . . . . . . . 6 21 . . . . . Entropic 3 | . . . . . . . . . . . . . . . . . . . . . . . . . 1 2 . . . . . . Sneak Attacks 30 | . . . . . 1 . 1 . . 2 1 1 . 1 . 9 . . . . . . . . . 1 3 . 1 5 3 1 Combat Hostiles 4 | . . . . . . . . . . . . . . . . 2 . . . . . . . . . . 1 . . . . 1 Follow-up Attacks 19 | . . . . . . . . . . . . . . . . . . . . . . . . . . . . . . . 3 16 Damage Inflicted 49164 | 228 90 395 . 638 1290 2079 1338 241 58 1996 472 1286 1094 21 44 720 . 82 199 579 620 135 986 3907 1920 1430 1051 1484 1261 1226 6355 15939 Guns 2439 | 218 89 166 . . 126 462 16 . 24 156 50 134 933 21 44 . . . . . . . . . . . . . . . . . Cannons 670 | . . . . 17 91 150 . . . . 167 84 161 . . . . . . . . . . . . . . . . . . . Explosions 19305 | . . 224 . 613 915 1387 1225 241 . 1543 55 626 . . . . . 82 . 579 533 135 986 3907 1920 1293 577 . 908 . . 1556 Melee 26608 | . . . . . 158 . 97 . . 297 200 438 . . . 720 . . 199 . 87 . . . . 137 474 1484 353 1226 6355 14383 Ramming 108 | 10 1 5 . 8 . 80 . . . . . 4 . . . . . . . . . . . . . . . . . . . . Kinetic 2162 | 218 50 63 . . 126 327 16 . 24 156 50 134 933 21 44 . . . . . . . . . . . . . . . . . Thermal 945 | . . . . 17 25 457 . . 34 . 167 84 161 . . . . . . . . . . . . . . . . . . . Explosive 19133 | . . 224 . 613 915 1215 1225 241 . 1543 55 626 . . . . . 82 . 579 533 135 986 3907 1920 1293 577 . 908 . . 1556 Electromagnetic 208 | . 39 103 . . 66 . . . . . . . . . . . . . . . . . . . . . . . . . . . Impact . | . . . . . . . . . . . . . . . . . . . . . . . . . . . . . . . . . Slashing 25916 | . . . . . 158 . 97 . . 297 200 438 . . . 639 . . 199 . 87 . . . . . . 1484 353 1226 6355 14383 Piercing 692 | . . . . . . . . . . . . . . . . 81 . . . . . . . . . 137 474 . . . . . Highest Corruption 6 | . . . . . . 2 2 2 2 2 . . . . . . . . . . . . . . . . . 3 . . 5 6 Average Corruption 2 | . . . . . . 1 2 2 2 2 . . . . . . . . . . . . . . . . . 2 . . 1 4 Corruption Purged . | . . . . . . . . . . . . . . . . . . . . . . . . . . . . . . . . . Effects 90 | . . . . . . 6 6 5 7 11 . . . . . . . . . . . . . . . . . 4 . . 6 45 Message Errors 30 | . . . . . . 1 4 4 2 5 . . . . . . . . . . . . . . . . . 2 . . 2 10 Matter Fused 12 | . . . . . . . . . . . . . . . . . . . . . . . . . . . . . . . 1 11 Heat Flow Errors 7 | . . . . . . . . . 1 2 . . . . . . . . . . . . . . . . . 1 . . . 3 Energy Discharges 9 | . . . . . . 2 2 . 1 1 . . . . . . . . . . . . . . . . . . . . 1 2 Data Loss (minor) 15 | . . . . . . 2 . 1 1 2 . . . . . . . . . . . . . . . . . . . . 1 8 Targeting Errors 16 | . . . . . . 1 . . 2 1 . . . . . . . . . . . . . . . . . 1 . . 1 10 Weapon Failures 1 | . . . . . . . . . . . . . . . . . . . . . . . . . . . . . . . . 1 Overload Shots . | . . . . . . . . . . . . . . . . . . . . . . . . . . . . . . . . . Overflow Damage 2671 | . . . . . 70 126 72 . . 197 175 12 . . . 217 . . 84 58 47 40 104 72 14 39 154 165 62 17 77 869 Projectiles 20 | . . . . . . . . . . . 20 . . . . . . . . . . . . . . . . . . . . . Explosions 728 | . . . . . . 126 72 . . 19 . 12 . . . . . . . 58 40 40 104 72 14 39 35 . 57 . . 40 Melee 1923 | . . . . . 70 . . . . 178 155 . . . . 217 . . 84 . 7 . . . . . 119 165 5 17 77 829 Knockbacks . | . . . . . . . . . . . . . . . . . . . . . . . . . . . . . . . . . Impact . | . . . . . . . . . . . . . . . . . . . . . . . . . . . . . . . . . Kinetic . | . . . . . . . . . . . . . . . . . . . . . . . . . . . . . . . . . Secondary . | . . . . . . . . . . . . . . . . . . . . . . . . . . . . . . . . . Self-Inflicted Damage 1153 | 3 . 31 . 55 . 655 41 . . . 27 . . . . . . . . 29 . . . 29 . 130 . . 4 . . 149 Shots 26 | . . 1 . 2 . 10 1 . . . 1 . . . . . . . . 1 . . . 1 . 3 . . 1 . . 5 Rammed 15 | 3 . 3 . 2 . 6 . . . . . 1 . . . . . . . . . . . . . . . . . . . . Targets Rammed 18 | 3 1 3 . 2 . 8 . . . . . 1 . . . . . . . . . . . . . . . . . . . . Kicked . | . . . . . . . . . . . . . . . . . . . . . . . . . . . . . . . . . Crushed 3 | . 1 . . . . 2 . . . . . . . . . . . . . . . . . . . . . . . . . . Highest Temperature 273 | . 40 69 . 41 78 202 139 27 273 218 255 103 214 . . 132 . . . . . . 9 . . . 72 113 . . . 190 Average Temperature 53 | . 14 32 . 26 27 60 47 11 143 70 96 32 82 . . 50 . . . . . . 7 . . . 29 28 . . . 79 Received Heat Transfer 1461 | . 12 75 . 51 63 298 63 18 . 117 . 276 . . 18 . 9 . . . . . 21 28 . 20 19 . . 4 31 338 Siege Activations 2 | . . . . . . . . . . . . . 2 . . . . . . . . . . . . . . . . . . . Total Turns 46 | . . . . . . . . . . . . . 46 . . . . . . . . . . . . . . . . . . . Longest Duration 38 | . . . . . . . . . . . . . 38 . . . . . . . . . . . . . . . . . . . Robots Corrupted . | . . . . . . . . . . . . . . . . . . . . . . . . . . . . . . . . . Combat Hostiles . | . . . . . . . . . . . . . . . . . . . . . . . . . . . . . . . . . Parts Fried . | . . . . . . . . . . . . . . . . . . . . . . . . . . . . . . . . . Impact Corruptions . | . . . . . . . . . . . . . . . . . . . . . . . . . . . . . . . . . Robots Melted . | . . . . . . . . . . . . . . . . . . . . . . . . . . . . . . . . . Combat Hostiles . | . . . . . . . . . . . . . . . . . . . . . . . . . . . . . . . . . Parts Melted 3 | . . . . . . 1 . . . . 2 . . . . . . . . . . . . . . . . . . . . . Heat Transferred 1233 | . . . . 37 37 585 . . 111 . 185 56 222 . . . . . . . . . . . . . . . . . . . Parts Sabotaged . | . . . . . . . . . . . . . . . . . . . . . . . . . . . . . . . . . Parts Stolen . | . . . . . . . . . . . . . . . . . . . . . . . . . . . . . . . . . Parts Stripped . | . . . . . . . . . . . . . . . . . . . . . . . . . . . . . . . . . Power Chain Reactions . | . . . . . . . . . . . . . . . . . . . . . . . . . . . . . . . . . Missiles Intercepted 20 | . . . . . . . . . . . . . . . . . . . . . . . . . . . . . . . 20 . Alert | -11 -10 -10 -10 -9 -8 -7 -7 -7 -7 -6 -6 -6 -6 -6 -6 -5 -5 -5 -5 -4 -4 -4 -4 -4 -3 -3 -3 -3 -2 -1 -1 -1 ------- Run | Scr Mat Min Exi Min Mat Fac Low Low Dat Pro Fac Ext Cet Arc Hub Fac Upp Upp Zhi Pro Fac Upp Upp War Pro Res Arm Lab Res Acc Com Ac0 Peak Influence 945 | 30 61 73 . 105 328 429 . . . . 443 805 429 299 337 432 . . . . 843 . . . . 529 945 . 624 492 87 . Initial 374 | . 19 23 . . 40 89 . . . . 59 127 109 141 34 127 . . . . 185 . . . . 225 277 . . 374 . . Average 211 | 21 41 61 . 77 111 244 . . . . 183 191 259 232 181 168 . . . . 488 . . . . 119 477 . 439 362 39 . Maximum Alert Level 3 | . . . . . 1 2 . . . . 2 3 2 1 1 2 . . . . 3 . . . . 2 3 . 2 2 . . Low Security (%) 62 | 100 100 100 . 100 98 31 . . . . 49 65 20 32 57 85 . . . . 36 . . . . 61 1 . 20 11 100 . Level 1 21 | . . . . . 1 65 . . . . 40 9 78 67 42 4 . . . . . . . . . 35 36 . 8 34 . . Level 2 13 | . . . . . . 3 . . . . 10 23 . . . 10 . . . . 48 . . . . 3 44 . 71 53 . . Level 3 2 | . . . . . . . . . . . . . . . . . . . . . 15 . . . . . 17 . . . . . Level 4 . | . . . . . . . . . . . . . . . . . . . . . . . . . . . . . . . . . Level 5 . | . . . . . . . . . . . . . . . . . . . . . . . . . . . . . . . . . High Security . | . . . . . . . . . . . . . . . . . . . . . . . . . . . . . . . . . Max Security . | . . . . . . . . . . . . . . . . . . . . . . . . . . . . . . . . . Squads Dispatched 45 | . 1 . . . 4 8 . . . . 3 5 . . 4 2 . . . . 7 . . . . 4 5 . 1 . 1 . Investigation 8 | . . . . . 1 . . . . . 1 . . . 4 1 . . . . . . . . . 1 . . . . . . Extermination 6 | . . . . . . 1 . . . . 1 . . . . . . . . . . . . . . 2 2 . . . . . Reinforcement 14 | . 1 . . . 2 2 . . . . . 3 . . . 1 . . . . . . . . . . 3 . 1 . 1 . Assault 3 | . . . . . . . . . . . . 2 . . . . . . . . 1 . . . . . . . . . . . Garrison 14 | . . . . . 1 5 . . . . 1 . . . . . . . . . 6 . . . . 1 . . . . . . Intercept . | . . . . . . . . . . . . . . . . . . . . . . . . . . . . . . . . . Construction Impeded 4 | . . . . . . 1 . . . . . 2 . . . 1 . . . . . . . . . . . . . . . . Haulers Reinforced . | . . . . . . . . . . . . . . . . . . . . . . . . . . . . . . . . . Stealth | -11 -10 -10 -10 -9 -8 -7 -7 -7 -7 -6 -6 -6 -6 -6 -6 -5 -5 -5 -5 -4 -4 -4 -4 -4 -3 -3 -3 -3 -2 -1 -1 -1 --------- Run | Scr Mat Min Exi Min Mat Fac Low Low Dat Pro Fac Ext Cet Arc Hub Fac Upp Upp Zhi Pro Fac Upp Upp War Pro Res Arm Lab Res Acc Com Ac0 Distress Signals 45 | . . . . . . 4 . . . . . 2 2 . 1 1 . . . . . . . . . 2 1 . 5 1 26 . Communications Jammed . | . . . . . . . . . . . . . . . . . . . . . . . . . . . . . . . . . Distress Signals . | . . . . . . . . . . . . . . . . . . . . . . . . . . . . . . . . . Times Spotted 470 | . 2 4 . 7 20 28 7 3 . 13 2 34 17 5 12 6 9 2 . 17 5 1 9 111 11 24 21 1 8 3 26 62 Peak Tracking Total 20 | . 1 2 . 4 4 10 4 1 . 4 2 5 5 1 4 2 8 2 . 7 3 1 4 20 4 13 6 1 6 2 5 10 Tactical Retreats 34 | . . . . 1 1 1 . . . 2 . 3 1 . . 2 2 . . 2 . . . 3 . 5 2 . 1 . 4 4 Traps | -11 -10 -10 -10 -9 -8 -7 -7 -7 -7 -6 -6 -6 -6 -6 -6 -5 -5 -5 -5 -4 -4 -4 -4 -4 -3 -3 -3 -3 -2 -1 -1 -1 ------- Run | Scr Mat Min Exi Min Mat Fac Low Low Dat Pro Fac Ext Cet Arc Hub Fac Upp Upp Zhi Pro Fac Upp Upp War Pro Res Arm Lab Res Acc Com Ac0 Traps Triggered 7 | . . . . 1 . 1 . . . . . 2 . . . 1 . . . . . . . . . . 2 . . . . . Indirectly . | . . . . . . . . . . . . . . . . . . . . . . . . . . . . . . . . . Trap Hack Attempts . | . . . . . . . . . . . . . . . . . . . . . . . . . . . . . . . . . Triggered . | . . . . . . . . . . . . . . . . . . . . . . . . . . . . . . . . . Disarmed . | . . . . . . . . . . . . . . . . . . . . . . . . . . . . . . . . . Reprogrammed 6 | . . . . . . . . . . . . . . . . . . . . . . . . . . . 6 . . . . . Reused 1 | . . . . . . . . . . . . . 1 . . . . . . . . . . . . . . . . . . . Traps Extracted . | . . . . . . . . . . . . . . . . . . . . . . . . . . . . . . . . . Installed 7 | . . . . 4 . . . . . . . . 3 . . . . . . . . . . . . . . . . . . . Triggered 23 | . . . . . . . . . . 1 . . 1 . . . . 2 . . . . . 19 . . . . . . . . Machines | -11 -10 -10 -10 -9 -8 -7 -7 -7 -7 -6 -6 -6 -6 -6 -6 -5 -5 -5 -5 -4 -4 -4 -4 -4 -3 -3 -3 -3 -2 -1 -1 -1 ---------- Run | Scr Mat Min Exi Min Mat Fac Low Low Dat Pro Fac Ext Cet Arc Hub Fac Upp Upp Zhi Pro Fac Upp Upp War Pro Res Arm Lab Res Acc Com Ac0 Machines Disabled 43 | . . . . . . 8 . . . . 5 2 1 3 . . . . . . . . . 2 . . 6 3 4 . 2 7 Max in Single Turn 3 | . . . . . . 3 . . . . 2 1 . . . . . . . . . . . 1 . . 1 1 2 . 1 1 Garrison Access 3 | . . . . . . . . . . . 1 . . . . . . . . . . . . . . . . . 2 . . . Network Hub 2 | . . . . . . . . . . . . . . . 2 . . . . . . . . . . . . . . . . . Machines Sabotaged 2 | . . . . . . . . . . . . . . . 2 . . . . . . . . . . . . . . . . . Garrisons Compromised . | . . . . . . . . . . . . . . . . . . . . . . . . . . . . . . . . . Overloaded Fab Kills . | . . . . . . . . . . . . . . . . . . . . . . . . . . . . . . . . . Fab Network Shutdowns 3 | . . . . . . . . . . . . . . . . 1 . . . . 1 . . . . . 1 . . . . . Hacking | -11 -10 -10 -10 -9 -8 -7 -7 -7 -7 -6 -6 -6 -6 -6 -6 -5 -5 -5 -5 -4 -4 -4 -4 -4 -3 -3 -3 -3 -2 -1 -1 -1 --------- Run | Scr Mat Min Exi Min Mat Fac Low Low Dat Pro Fac Ext Cet Arc Hub Fac Upp Upp Zhi Pro Fac Upp Upp War Pro Res Arm Lab Res Acc Com Ac0 Machines Accessed 83 | . . . 1 . 4 5 . . 3 . 4 15 . . 5 5 . 1 4 . 5 . . 2 . 6 13 . 2 5 3 . Terminals 49 | . . . . . 3 2 . . . . 2 15 . . 4 2 . . . . 2 . . . . 4 8 . 1 4 2 . Fabricators 7 | . . . . . . 1 . . . . . . . . . 1 . . . . 1 . . . . . 3 . . 1 . . Repair Stations 2 | . . . . . . . . . . . . . . . . 1 . . . . . . . . . . . . . . 1 . Recycling Units 2 | . . . . . . . . . . . . . . . . . . . . . . . . . . . 2 . . . . . Scanalyzers 7 | . . . . . 1 2 . . . . 1 . . . . 1 . . . . 1 . . . . 1 . . . . . . Garrison Access 5 | . . . . . . . . . . . 1 . . . 1 . . . . . 1 . . . . 1 . . 1 . . . Total Hacks 393 | . . . 1 . 16 12 . . 24 . 13 43 . . 29 32 . 1 17 . 42 . . 7 . 32 78 . 13 29 4 . Successful 320 | . . . 1 . 9 8 . . 24 . 7 34 . . 26 27 . 1 17 . 35 . . 7 . 24 72 . 5 19 4 . Failed 73 | . . . . . 7 4 . . . . 6 9 . . 3 5 . . . . 7 . . . . 8 6 . 8 10 . . Catastrophic 8 | . . . . . 1 1 . . . . 1 1 . . . . . . . . 2 . . . . . . . 2 . . . Database Lockouts . | . . . . . . . . . . . . . . . . . . . . . . . . . . . . . . . . . Manual 163 | . . . 1 . 5 3 . . . . 9 14 1 . 21 19 . . . . 19 . . 1 . 19 36 . 9 6 . . Terminals 228 | . . . . . 12 6 . . . . 7 43 . . 26 24 . . . . 18 . . . . 27 39 . 10 14 2 . Fabricators 60 | . . . . . . 3 . . . . . . . . . 6 . . . . 8 . . . . . 28 . . 15 . . Repair Stations 3 | . . . . . . . . . . . . . . . . 1 . . . . . . . . . . . . . . 2 . Recycling Units 11 | . . . . . . . . . . . . . . . . . . . . . . . . . . . 11 . . . . . Scanalyzers 25 | . . . . . 4 3 . . . . 3 . . . . 1 . . . . 11 . . . . 3 . . . . . . Garrison Access 16 | . . . . . . . . . . . 3 . . . 3 . . . . . 5 . . . . 2 . . 3 . . . Terminal Hacks 188 | . . . 1 . 4 5 . . 24 . 1 28 . . 18 16 . 1 17 . 12 . . 7 . 15 26 . 3 8 2 . Record 8 | . . . . . . . . . 3 . . . . . . . . . 5 . . . . . . . . . . . . . Part Schematic 37 | . . . . . 1 . . . 12 . . 2 . . 3 6 . . 4 . 1 . . . . 2 6 . . . . . Robot Schematic 7 | . . . . . . . . . 6 . . . . . . . . . . . . . . . . . 1 . . . . . Robot Analysis 6 | . . . . . . . . . . . . . . . 1 1 . . 4 . . . . . . . . . . . . . Prototype ID Bank 26 | . . . . . 1 1 . . 3 . . 4 . . 3 2 . . 4 . 2 . . 6 . . . . . . . . Open Door 18 | . . . . . . . . . . . 1 10 . . . . . 1 . . . . . 1 . . 1 . . 3 1 . Level Access Points 4 | . . . . . . . . . . . . . . . 1 1 . . . . 1 . . . . 1 . . . . . . Branch Access Points 6 | . . . . . 1 1 . . . . . . . . . . . . . . 1 . . . . 1 . . 1 1 . . Machine Index 2 | . . . . . . . . . . . . . . . . 1 . . . . . . . . . . . . 1 . . . Terminal Index 5 | . . . . . . . . . . . . . . . 1 . . . . . 1 . . . . 1 2 . . . . . Garrison Index 1 | . . . . . . . . . . . . . . . 1 . . . . . . . . . . . . . . . . . Alert Level 9 | . . . . . . . . . . . . 2 . . 3 1 . . . . 1 . . . . . 1 . 1 . . . Unreport Threat 23 | . . . . . . . . . . . . 6 . . 3 . . . . . 1 . . . . 3 6 . . 4 . . Locate Traps 4 | . . . . . . . . . . . . 1 . . . . . . . . 1 . . . . . 2 . . . . . Reprogram Traps 1 | . . . . . . . . . . . . . . . . . . . . . . . . . . . 1 . . . . . Dispatch Records 4 | . . . . . . . . . . . . 1 . . 1 1 . . . . . . . . . 1 . . . . . . Patrol Status 5 | . . . . . . 1 . . . . . . . . 1 1 . . . . 1 . . . . 1 . . . . . . Transport Status 1 | . . . . . . . . . . . . . . . . . . . . . . . . . . 1 . . . . . . Recall Extermination 3 | . . . . . . . . . . . . . . . . . . . . . . . . . . 1 2 . . . . . Recall Reinforcements 4 | . . . . . . . . . . . . 2 . . . 1 . . . . . . . . . 1 . . . . . . Recall Assault 1 | . . . . . . . . . . . . . . . . . . . . . 1 . . . . . . . . . . . Hauler Manifests 2 | . . . . . . . . . . . . . . . . . . . . . 1 . . . . 1 . . . . . . Registered Components 1 | . . . . . 1 . . . . . . . . . . . . . . . . . . . . . . . . . . . Registered Prototypes 2 | . . . . . . 1 . . . . . . . . . . . . . . . . . . . 1 . . . . . . Zone Layout 6 | . . . . . . 1 . . . . . . . . . 1 . . . . . . . . . . 4 . . . . . EX-Prototype ID Bank 1 | . . . 1 . . . . . . . . . . . . . . . . . . . . . . . . . . . . . Disengage Seal 1 | . . . . . . . . . . . . . . . . . . . . . . . . . . . . . . . 1 . Fabricator Hacks 38 | . . . . . . 2 . . . . . . . . . 4 . . . . 5 . . . . . 20 . . 7 . . Load Schematic 16 | . . . . . . 1 . . . . . . . . . 2 . . . . 2 . . . . . 9 . . 2 . . Build 22 | . . . . . . 1 . . . . . . . . . 2 . . . . 3 . . . . . 11 . . 5 . . Repair Station Hacks 3 | . . . . . . . . . . . . . . . . 1 . . . . . . . . . . . . . . 2 . Scan Component 1 | . . . . . . . . . . . . . . . . . . . . . . . . . . . . . . . 1 . Repair 1 | . . . . . . . . . . . . . . . . . . . . . . . . . . . . . . . 1 . Refit 1 | . . . . . . . . . . . . . . . . 1 . . . . . . . . . . . . . . . . Recycling Unit Hacks 11 | . . . . . . . . . . . . . . . . . . . . . . . . . . . 11 . . . . . Recycle Component 2 | . . . . . . . . . . . . . . . . . . . . . . . . . . . 2 . . . . . Process 4 | . . . . . . . . . . . . . . . . . . . . . . . . . . . 4 . . . . . Report Inventory 2 | . . . . . . . . . . . . . . . . . . . . . . . . . . . 2 . . . . . Retrieve Matter 3 | . . . . . . . . . . . . . . . . . . . . . . . . . . . 3 . . . . . Scanalyzer 22 | . . . . . 4 1 . . . . 3 . . . . . . . . . 11 . . . . 3 . . . . . . Insert Component 13 | . . . . . 2 1 . . . . 3 . . . . . . . . . 5 . . . . 2 . . . . . . Analyze 9 | . . . . . 2 . . . . . . . . . . . . . . . 6 . . . . 1 . . . . . . Garrison Access Hacks 1 | . . . . . . . . . . . . . . . . . . . . . . . . . . . . . 1 . . . Seal Access 1 | . . . . . . . . . . . . . . . . . . . . . . . . . . . . . 1 . . . Unauthorized Hacks 57 | . . . . . 1 . . . . . 3 6 . . 8 6 . . . . 7 . . . . 6 15 . 1 4 . . Terminals 26 | . . . . . 1 . . . . . . 6 . . 5 3 . . . . . . . . . 4 7 . . . . . Track 3 | . . . . . . . . . . . . . . . . 1 . . . . . . . . . . 2 . . . . . Assimilate 3 | . . . . . . . . . . . . . . . . . . . . . . . . . . 2 1 . . . . . Botnet 12 | . . . . . 1 . . . . . . 3 . . 1 2 . . . . . . . . . 2 3 . . . . . Disrupt 4 | . . . . . . . . . . . . 3 . . . . . . . . . . . . . . 1 . . . . . Sabotage 4 | . . . . . . . . . . . . . . . 4 . . . . . . . . . . . . . . . . . Fabricators 17 | . . . . . . . . . . . . . . . . 2 . . . . 3 . . . . . 8 . . 4 . . Report 4 | . . . . . . . . . . . . . . . . . . . . . 1 . . . . . 2 . . 1 . . Prioritize 6 | . . . . . . . . . . . . . . . . 1 . . . . 1 . . . . . 3 . . 1 . . Siphon 6 | . . . . . . . . . . . . . . . . 1 . . . . 1 . . . . . 3 . . 1 . . Haulers 1 | . . . . . . . . . . . . . . . . . . . . . . . . . . . . . . 1 . . Repair Stations . | . . . . . . . . . . . . . . . . . . . . . . . . . . . . . . . . . Recycling Units . | . . . . . . . . . . . . . . . . . . . . . . . . . . . . . . . . . Scanalyzers 1 | . . . . . . . . . . . . . . . . 1 . . . . . . . . . . . . . . . . Extract 1 | . . . . . . . . . . . . . . . . 1 . . . . . . . . . . . . . . . . Garrison Access 13 | . . . . . . . . . . . 3 . . . 3 . . . . . 4 . . . . 2 . . 1 . . . Broadcast 4 | . . . . . . . . . . . 1 . . . 1 . . . . . . . . . . 1 . . 1 . . . Reprogram 8 | . . . . . . . . . . . 1 . . . 2 . . . . . 4 . . . . 1 . . . . . . Jam 1 | . . . . . . . . . . . 1 . . . . . . . . . . . . . . . . . . . . . Data Cores Recovered 1 | . . . . . . . . . . . . . . . . . . . . . 1 . . . . . . . . . . . Used 1 | . . . . . . . . . . . . . . . . . . . . . 1 . . . . . . . . . . . Hacking Detections 32 | . . . . . 3 5 . . . . 2 5 . . 1 . . . . . 3 . . . . 3 8 . 1 1 . . Full Trace Events 3 | . . . . . 2 . . . . . . . . . . . . . . . . . . . . 1 . . . . . . Feedback Events 2 | . . . . . 1 . . . . . . . . . . . . . . . . . . . . 1 . . . . . . Hackware Fried 2 | . . . . . 1 . . . . . . . . . . . . . . . . . . . . 1 . . . . . . Feedback Blocked . | . . . . . . . . . . . . . . . . . . . . . . . . . . . . . . . . . Robot Schematics Acquired 7 | . . . . . . . . . 6 . . . . . . . . . . . . . . . . . 1 . . . . . Robots Built 6 | . . . . . . . . . . . . . . . . . . . . . . . . . . . 6 . . . . . Matter 714 | . . . . . . . . . . . . . . . . . . . . . . . . . . . 714 . . . . . Time 126 | . . . . . . . . . . . . . . . . . . . . . . . . . . . 126 . . . . . Total Robot Build Rating 36 | . . . . . . . . . . . . . . . . . . . . . . . . . . . 36 . . . . . Part Schematics Acquired 46 | . . . . . 2 . . . 12 . . 2 . . 3 9 . . 4 . 5 . . . . 3 6 . . . . . Parts Built 26 | . . . . . . 3 . . . . . . . . . 2 . . . . 3 . . . . . 8 . . 10 . . Matter 4060 | . . . . . . 124 . . . . . . . . . 451 . . . . 714 . . . . . 2059 . . 712 . . Time 1042 | . . . . . . 31 . . . . . . . . . 160 . . . . 252 . . . . . 497 . . 102 . . Total Part Build Rating 149 | . . . . . . 6 . . . . . . . . . 11 . . . . 18 . . . . . 64 . . 50 . . Parts Repaired 1 | . . . . . . . . . . . . . . . . . . . . . . . . . . . . . . . 1 . Time 26 | . . . . . . . . . . . . . . . . . . . . . . . . . . . . . . . 26 . Parts Recycled 2 | . . . . . . . . . . . . . . . . . . . . . . . . . . . 2 . . . . . Recycled Matter 149 | . . . . . . . . . . . . . . . . . . . . . . . . . . . 149 . . . . . Retrieved Matter 149 | . . . . . . . . . . . . . . . . . . . . . . . . . . . 149 . . . . . Retrieved Components . | . . . . . . . . . . . . . . . . . . . . . . . . . . . . . . . . . Parts Scanalyzed 6 | . . . . . 1 . . . . . . . . . . . . . . . 4 . . . . 1 . . . . . . Part Schematics Acquired 6 | . . . . . 1 . . . . . . . . . . . . . . . 4 . . . . 1 . . . . . . Parts Damaged 1 | . . . . . . . . . . . . . . . . . . . . . 1 . . . . . . . . . . . Bothacking | -11 -10 -10 -10 -9 -8 -7 -7 -7 -7 -6 -6 -6 -6 -6 -6 -5 -5 -5 -5 -4 -4 -4 -4 -4 -3 -3 -3 -3 -2 -1 -1 -1 ------------ Run | Scr Mat Min Exi Min Mat Fac Low Low Dat Pro Fac Ext Cet Arc Hub Fac Upp Upp Zhi Pro Fac Upp Upp War Pro Res Arm Lab Res Acc Com Ac0 Used RIF Installer . | . . . . . . . . . . . . . . . . . . . . . . . . . . . . . . . . . Robots Hacked 3 | . . . . . . 1 . . . . . . . 1 . 1 . . . . . . . . . . . . . . . . Non-combat 3 | . . . . . . 1 . . . . . . . 1 . 1 . . . . . . . . . . . . . . . . Combat . | . . . . . . . . . . . . . . . . . . . . . . . . . . . . . . . . . Robot Hacks Applied 3 | . . . . . . 1 . . . . . . . 1 . 1 . . . . . . . . . . . . . . . . find_chute 2 | . . . . . . 1 . . . . . . . . . 1 . . . . . . . . . . . . . . . . check_alert 1 | . . . . . . . . . . . . . . 1 . . . . . . . . . . . . . . . . . . Relay Couplers Released 6 | . . . . . . . . . . . . . . . . . . . . . 3 . . . . . . . 3 . . . Machine Destruction 3 | . . . . . . . . . . . . . . . . . . . . . . . . . . . . . 3 . . . Programmers 3 | . . . . . . . . . . . . . . . . . . . . . 3 . . . . . . . . . . . Robots Rewired 25 | . . . . . . . 2 . . . . 10 . . . 2 . . . . . . . 4 . . 7 . . . . . Allies Hacked 4 | . . . . . . . . . . . . . . . . . . . . . . . . 1 . . 3 . . . . . Hacks Repelled 3 | . . . . . . . . . . . . . . . . . . . . . . . . 3 . . . . . . . . Allies | -11 -10 -10 -10 -9 -8 -7 -7 -7 -7 -6 -6 -6 -6 -6 -6 -5 -5 -5 -5 -4 -4 -4 -4 -4 -3 -3 -3 -3 -2 -1 -1 -1 -------- Run | Scr Mat Min Exi Min Mat Fac Low Low Dat Pro Fac Ext Cet Arc Hub Fac Upp Upp Zhi Pro Fac Upp Upp War Pro Res Arm Lab Res Acc Com Ac0 Total Allies 82 | . . . . 2 . . 2 . 1 . 1 28 4 . 6 2 . . . . 4 . . 4 . 1 27 . . . . . Largest Group 19 | . . . . 2 2 . 2 . 1 . 1 17 15 3 6 2 . . . . 4 3 3 7 . 1 19 3 . . . . Highest-Rated Group 919 | . . . . 40 40 . 50 . 59 . 32 632 526 282 174 58 . . . . 196 147 147 365 . 26 919 144 . . . . Highest-Rated Ally 156 | . . . . 31 31 . 25 . 59 . 32 156 150 94 29 30 . . . . 49 49 49 60 . 26 58 48 . . . . Total Orders 163 | . . . . . . . . . 4 . . 6 7 2 . . 9 2 . 7 6 1 5 34 5 5 14 1 . 1 15 39 STAY 12 | . . . . . . . . . 2 . . 1 1 1 . . . . . . . . . 4 . . . 1 . . . 2 ROAM 18 | . . . . . . . . . . . . 3 3 1 . . . . . . . . . . . . 9 . . . 2 . FOLLOW 18 | . . . . . . . . . 2 . . 2 3 . . . . . . . 1 . . 4 . . . . . . 1 5 EXPLORE 8 | . . . . . . . . . . . . . . . . . . . . . . . . 6 . . . . . . . 2 RETURN 107 | . . . . . . . . . . . . . . . . . 9 2 . 7 5 1 5 20 5 5 5 . . 1 12 30 Ally Attacks 1141 | . . . . . 10 . 3 . . . 5 148 135 31 68 10 25 6 . 14 57 28 49 248 20 12 135 7 . . 46 84 Total Damage 42026 | . . . . . 122 . 32 . . . 135 3848 3704 1217 1083 132 410 116 . 232 934 572 1168 6150 353 215 4618 124 . . 6159 10702 Kills 170 | . . . . . 2 . 1 . . . . 31 16 4 7 . 1 1 . 1 4 7 7 38 2 . 20 . . . 18 10 Allies Corrupted 3 | . . . . . . . . . . . . . . . . . . . . . . . . 2 . . . 1 . . . . Allies Melted 2 | . . . . . . . . . . . . . . . . 1 . . . . . . . . . . . . 1 . . . Field Lobotomies 3 | . . . . . . . . . 1 . . 2 . . . . . . . . . . . . . . . . . . . . Intel | -11 -10 -10 -10 -9 -8 -7 -7 -7 -7 -6 -6 -6 -6 -6 -6 -5 -5 -5 -5 -4 -4 -4 -4 -4 -3 -3 -3 -3 -2 -1 -1 -1 ------- Run | Scr Mat Min Exi Min Mat Fac Low Low Dat Pro Fac Ext Cet Arc Hub Fac Upp Upp Zhi Pro Fac Upp Upp War Pro Res Arm Lab Res Acc Com Ac0 Robot Analysis Total 6 | . . . . . . . . . . . . . . . 1 1 . . 4 . . . . . . . . . . . . . Derelict Logs Recovered 13 | . . 2 . 1 . . 1 3 . . . . . . . . 1 1 . 1 . 2 1 . . . . . . . . . Drone Launches 190 | . . . . . . . . . . . . . . . . 2 18 5 . 11 12 9 13 42 10 5 12 . . 4 13 34 Drone Recoveries 182 | . . . . . . . . . . . . . . . . . 18 4 . 12 9 7 11 46 8 6 11 . . 2 15 33 Exploration | -11 -10 -10 -10 -9 -8 -7 -7 -7 -7 -6 -6 -6 -6 -6 -6 -5 -5 -5 -5 -4 -4 -4 -4 -4 -3 -3 -3 -3 -2 -1 -1 -1 ------------- Run | Scr Mat Min Exi Min Mat Fac Low Low Dat Pro Fac Ext Cet Arc Hub Fac Upp Upp Zhi Pro Fac Upp Upp War Pro Res Arm Lab Res Acc Com Ac0 Turns Passed 22001 | 238 348 550 803 605 1001 1180 1156 919 398 1094 582 2336 485 551 136 468 175 143 80 140 554 306 406 1252 245 769 989 297 354 167 1582 1692 Spaces Moved 18172 | 124 96 287 497 517 677 621 615 511 130 561 295 1000 148 305 179 552 249 317 156 311 307 263 538 1017 439 1011 1055 309 509 242 1954 2380 Core 24 | 24 . . . . . . . . . . . . . . . . . . . . . . . . . . . . . . . . Treads 4459 | 100 96 287 497 55 . 156 615 511 130 561 31 986 148 286 . . . . . . . . . . . . . . . . . . Legs . | . . . . . . . . . . . . . . . . . . . . . . . . . . . . . . . . . Wheels 1882 | . . . . 462 677 465 . . . . 264 14 . . . . . . . . . . . . . . . . . . . . Hover 11807 | . . . . . . . . . . . . . . 19 179 552 249 317 156 311 307 263 538 1017 439 1011 1055 309 509 242 1954 2380 Flight . | . . . . . . . . . . . . . . . . . . . . . . . . . . . . . . . . . Fastest Speed 17 | 50 160 160 160 100 110 115 175 175 178 178 150 150 160 102 30 22 22 22 38 22 22 38 38 30 43 33 33 48 44 44 42 17 Average Speed 81 | 138 160 160 160 106 112 138 176 175 178 178 170 182 164 156 30 37 37 37 38 36 37 38 38 45 43 41 42 48 45 44 43 34 Slowest Speed 200 | 160 160 160 160 180 130 186 186 178 178 178 180 185 200 160 30 38 38 38 38 38 38 38 38 88 43 118 111 48 48 48 44 103 Overloaded Moves 2515 | . . . . . . . . . . . . . . . 179 12 5 3 . 27 2 . . 213 . 197 619 . . . . 1258 Propulsion Burnouts 3 | . . . . . . . . . . . . . . . . . . . . . . . . . . . . . . . . 3 Robots Hopped . | . . . . . . . . . . . . . . . . . . . . . . . . . . . . . . . . . Cave-ins Triggered . | . . . . . . . . . . . . . . . . . . . . . . . . . . . . . . . . . Teleports 3 | . . . . . . . . . . . . . . . . . . . . . . . . . . . 1 . . . 1 1 Exploration Rate (%) 52 | 6 17 58 69 85 54 24 66 69 74 67 9 95 63 83 20 15 49 61 61 56 10 68 82 96 71 16 44 92 14 8 52 76 Regions Visited 32 Branch Regions 23 Pre-discovered Areas 8 | . . 2 . 1 . . . . 1 . . . . . . . . 1 3 . . . . . . . . . . . . . Known Exits Taken 11 | . . . . . . 1 . . . . . . . . 1 1 . . . 1 1 1 . . 1 1 1 1 . 1 . . Unknown Exits Taken 21 | 1 1 1 1 1 1 . 1 1 1 1 1 1 1 1 . . 1 1 1 . . . 1 1 . . . . 1 . 1 . Scrap Searched 25 | . . 2 . 2 . . 4 1 . 2 . . . . . . 2 5 . 1 . 2 1 . 3 . . . . . . . Spaces Dug 332 | . 2 20 . 18 40 14 27 34 5 6 5 17 . . 2 17 1 . . . 19 . . 2 1 47 25 . 4 2 18 6 Terrain Destroyed 1545 | . 4 45 . 80 89 139 126 96 5 116 53 92 2 . 2 22 1 15 . 20 40 11 57 129 125 103 69 . 54 2 18 30 Melee 100 | . . . . . 7 13 1 . 5 6 5 1 . . 2 8 1 . . . . . . 2 1 7 11 . 4 2 18 6 Projectile 29 | . 4 . . . 4 2 . . . . . . 2 . . 14 . . . . . . . . . . 3 . . . . . AOE 1416 | . . 45 . 80 78 124 125 96 . 110 48 91 . . . . . 15 . 20 40 11 57 127 124 96 55 . 50 . . 24 Terrain Rammed . | . . . . . . . . . . . . . . . . . . . . . . . . . . . . . . . . . Walls Destroyed . | . . . . . . . . . . . . . . . . . . . . . . . . . . . . . . . . . Machines Disabled . | . . . . . . . . . . . . . . . . . . . . . . . . . . . . . . . . . Actions | -11 -10 -10 -10 -9 -8 -7 -7 -7 -7 -6 -6 -6 -6 -6 -6 -5 -5 -5 -5 -4 -4 -4 -4 -4 -3 -3 -3 -3 -2 -1 -1 -1 --------- Run | Scr Mat Min Exi Min Mat Fac Low Low Dat Pro Fac Ext Cet Arc Hub Fac Upp Upp Zhi Pro Fac Upp Upp War Pro Res Arm Lab Res Acc Com Ac0 Total 24670 | 163 265 350 506 561 873 870 673 524 279 625 346 1465 340 385 251 778 328 337 174 331 709 467 733 1789 475 1350 1567 439 620 297 2673 3127 Wait 4532 | 1 144 31 . 8 106 143 3 2 118 19 3 349 136 31 61 175 77 15 3 15 361 204 191 694 20 288 380 47 82 19 480 326 Move 18139 | 123 95 286 496 516 676 620 614 510 129 560 294 999 147 304 178 551 248 316 155 310 306 262 537 1016 438 1010 1054 308 508 241 1953 2379 Hop . | . . . . . . . . . . . . . . . . . . . . . . . . . . . . . . . . . Pick Up 191 | 5 3 4 4 5 11 16 12 1 6 4 4 2 4 3 . 4 . . 1 . 1 . . 7 . 5 20 8 2 9 35 15 Fast Attach 168 | 7 . . 1 2 8 6 1 . . 1 4 4 5 6 . 2 1 1 6 . 3 . . 12 . 2 18 6 4 3 8 57 Attach 101 | . 1 1 1 . 2 5 3 1 2 2 1 . . 8 1 3 . . 1 . . . . 8 . 9 13 2 1 1 18 17 Detach 53 | . 1 . . . 1 3 . . . 1 . . 3 3 . 3 . . 1 . . . . 2 . 8 10 2 . 1 5 9 Swap 158 | . 10 5 . 1 16 18 7 2 6 9 8 12 2 3 . 3 . 1 . 1 1 . 1 3 1 8 7 1 2 5 16 9 Drop 279 | 1 1 4 4 7 19 7 7 1 6 2 5 8 11 23 1 3 1 2 5 . 2 . . 23 . 5 19 12 4 5 51 40 Fire 359 | 23 9 16 . 10 25 31 12 7 7 17 15 23 29 3 8 14 . 2 . 5 30 1 4 13 15 7 8 10 6 . 2 7 Melee 569 | . . . . . 9 13 2 . 5 10 12 17 . 1 2 20 1 . 2 . 3 . . 2 1 8 21 43 11 13 105 268 Ram 1 | 1 . . . . . . . . . . . . . . . . . . . . . . . . . . . . . . . . Kick . | . . . . . . . . . . . . . . . . . . . . . . . . . . . . . . . . . Crush 17 | 2 1 3 . 2 . 8 . . . . . 1 . . . . . . . . . . . . . . . . . . . . Escape Stasis 12 | . . . . 6 . . . . . . . 6 . . . . . . . . . . . . . . . . . . . . Rewire 82 | . . . . . . . 12 . . . . 44 . . . . . . . . . . . 9 . . 17 . . . . . Trap 7 | . . . . 4 . . . . . . . . 3 . . . . . . . . . . . . . . . . . . . Miscellaneous 2 | . . . . . . . . . . . . . . . . . . . . . 2 . . . . . . . . . . . Route ------- -11/Scrapyard -10/Materials -10/Mines (discovered 2 exits: [*Mat] / *Exi) -10/Exiles -9/Mines (discovered 2 exits: *Mat x2) -8/Materials (discovered 2 exits: *Fac x2) -7/Factory (discovered 3 exits: Sto / *Low x2) -7/Lower Caves -7/Lower Caves -7/Data Miner -6/Proximity Caves -6/Factory (discovered 3 exits: Fac / Low / *Ext) -6/Extension (discovered 2 exits: *Fac / *Cet) -6/Cetus -6/Archives (discovered 3 exits: *Fac / *Hub x2) -6/Hub_04(d) (discovered 4 exits: *Fac x4) -5/Factory (discovered 5 exits: Fac x4 / *Upp) -5/Upper Caves -5/Upper Caves -5/Zhirov -4/Proximity Caves -4/Factory (discovered 6 exits: Res x4 / *Upp x2) -4/Upper Caves -4/Upper Caves -4/Warlord -3/Proximity Caves -3/Research (discovered 6 exits: *Res x3 / *Arm / Qua x2) -3/Armory (discovered 2 exits: *Res / *Lab) -3/Lab -2/Research (discovered 3 exits: *Acc / *Tes x2) -1/Access -1/Command (discovered 2 exits: [*Sur] / [*Ac0]) -1/Access_0 Near Former Tau Ceti IV History --------- Turn | Location | Event 5 | -11/Scrapyard | Discovered new exit (range 15) 239 | -11/Scrapyard | Entered Materials 306 | -10/Materials | Build established: Mutant 556 | -10/Materials | Discovered new exit (range 8) 587 | -10/Materials | Entered Mines 639 | -10/Mines | Discovered new exit (range 6) 646 | -10/Mines | Received a Rocket Launcher from a helpful Derelict 684 | -10/Mines | Learned location of Zion (-6) 734 | -10/Mines | Learned location of Mines (-9) 835 | -10/Mines | A weapon hastily lodged in a ceiling crevice suddenly fell to the ground 1080 | -10/Mines | Deemed a non-threat by the Exiles lab entrance 1080 | -10/Mines | Discovered new exit (range 5) 1137 | -10/Mines | Entered Exiles 1177 | -10/Exiles | Met 8R-AWN 1202 | -10/Exiles | Met EX-HEX 1282 | -10/Exiles | Met EX-DEC 1703 | -10/Exiles | Met EX-BIN 1726 | -10/Exiles | Aligned with FarCom system 1727 | -10/Exiles | Given EX-Vault access code 1764 | -10/Exiles | Opened EX-Vault 1783 | -10/Exiles | Found Field Lobotomy Kit 1818 | -10/Exiles | Warned to stay clear of 0b10 Research branches 1919 | -10/Exiles | Discovered new exit (range 14) 1940 | -10/Exiles | Left Exiles lab with Field Lobotomy Kit 1940 | -10/Exiles | Entered Mines 2044 | -9/Mines | Discovered new exit (range 14) 2077 | -9/Mines | Found a hidden stash of uninstalled traps 2179 | -9/Mines | Learned location of Storage (-7) 2341 | -9/Mines | Build established: Derelict-Mutant 2496 | -9/Mines | Discovered new exit (range 5) 2545 | -9/Mines | Entered Materials 2545 | -8/Materials | Accompanied by 2 allies 2545 | -8/Materials | Evolved 4 slots: Propulsion x1, Utility x3 2550 | -8/Materials | Led the pair of lost Derelicts to an unsafe place 2819 | -8/Materials | Garrison activated, responded to threat 2923 | -8/Materials | Discovered new exit (range 4) 3081 | -8/Materials | Build established: Mutant 3316 | -8/Materials | Discovered new exit (range 5) 3484 | -8/Materials | Hacking Suite fried by hacking feedback 3546 | -8/Materials | Entered Factory 3546 | -7/Factory | Evolved 2 slots: Utility x2 3664 | -7/Factory | Fabricated Plasma Cutter (x3) 3960 | -7/Factory | Garrison activated, responded to threat 4185 | -7/Factory | Identified exit to Storage 4185 | -7/Factory | Identified exit to Lower Caves 4558 | -7/Factory | Garrison activated, responded to threat 4726 | -7/Factory | Entered Lower Caves 4951 | -7/Lower Caves | Build established: Hauler-Mutant 5038 | -7/Lower Caves | Learned 8 Factory zone layouts 5598 | -7/Lower Caves | Discovered new exit (range 12) 5882 | -7/Lower Caves | Entered another Lower Caves area 6478 | -7/Lower Caves | Learned 4 Factory zone layouts 6537 | -7/Lower Caves | Learned Factory terminal intel 6646 | -7/Lower Caves | Discovered new exit (range 9) 6801 | -7/Lower Caves | Entered Data Miner 6801 | -7/Data Miner | Discovered new exit (range 6) 6835 | -7/Data Miner | Met Data Miner 6873 | -7/Data Miner | Learned location of Section 7 (-3) 6873 | -7/Data Miner | Acquired the access code to Warlord's prototype stash 6903 | -7/Data Miner | Received God Mode back door access code from Data Miner 6920 | -7/Data Miner | Assimilated Data Miner with FLK Orb 7169 | -7/Data Miner | Destroyed Data Miner 7172 | -7/Data Miner | Found Prototype Hackware 7175 | -7/Data Miner | Found Prototype Hackware 7177 | -7/Data Miner | Found Prototype Hackware 7180 | -7/Data Miner | Found Prototype Hackware 7199 | -7/Data Miner | Entered Proximity Caves 7666 | -6/Proximity Caves | Found Alien Artifact 7666 | -6/Proximity Caves | Identified Core Expander 7666 | -6/Proximity Caves | Installed Core Expander, added new Utility slot 8284 | -6/Proximity Caves | Discovered new exit (range 5) 8293 | -6/Proximity Caves | Entered Factory 8293 | -6/Factory | Evolved 2 slots: Utility x2 8294 | -6/Factory | Identified exit to Lower Caves 8294 | -6/Factory | Identified exit to Factory 8295 | -6/Factory | Loaded intel: 20 terminal locations 8492 | -6/Factory | Identified System Mapper 8731 | -6/Factory | Identified Deep Network Scanner 8731 | -6/Factory | Identified Ghost Barrier 8731 | -6/Factory | Identified Quantum Router 8863 | -6/Factory | Discovered new exit (range 10) 8875 | -6/Factory | Entered Extension 8961 | -6/Extension | Rescued a captive Derelict 8961 | -6/Extension | Rescued a captive Derelict 9114 | -6/Extension | Build established: Wizard-Mutant 9225 | -6/Extension | First assault squad dispatched 9291 | -6/Extension | Rescued a captive Derelict 9291 | -6/Extension | Rescued a captive Derelict 9363 | -6/Extension | Rescued A7 9421 | -6/Extension | Rescued a captive Derelict 9422 | -6/Extension | Rescued a captive Derelict 9453 | -6/Extension | Rescued a captive Derelict 9621 | -6/Extension | Spotted B-75 Beast 9626 | -6/Extension | Assimilated B-75 Beast with FLK Orb 9635 | -6/Extension | Spotted B-75 Beast 9639 | -6/Extension | Assimilated B-75 Beast with FLK Orb 9698 | -6/Extension | Rescued a captive Derelict 9753 | -6/Extension | Rescued a captive Derelict 9754 | -6/Extension | Rescued a captive Derelict 9773 | -6/Extension | Rescued a captive Derelict 9904 | -6/Extension | Rescued a captive Derelict 9904 | -6/Extension | Rescued a captive Derelict 10932 | -6/Extension | Discovered new exit (range 15) 10934 | -6/Extension | Discovered exit to Factory (range 15) 11063 | -6/Extension | Rescued a captive Derelict 11064 | -6/Extension | Rescued a captive Derelict 11211 | -6/Extension | Disrupted transfer network 11211 | -6/Extension | Entered Cetus 11211 | -6/Cetus | Accompanied by 15 allies (A7) 11216 | -6/Cetus | Acquired a Cetus Manufacturing Module code from A7 11248 | -6/Cetus | Spotted Cetus Guard 11248 | -6/Cetus | Spotted Cetus Guard 11250 | -6/Cetus | Spotted Cetus Guard 11250 | -6/Cetus | Spotted Cetus Guard 11250 | -6/Cetus | Allies destroyed Cetus Guard 11258 | -6/Cetus | Allies destroyed Cetus Guard 11268 | -6/Cetus | Allies destroyed Cetus Guard 11282 | -6/Cetus | Allies destroyed Cetus Guard 11350 | -6/Cetus | Destroyed A7 11353 | -6/Cetus | Extracted ID and sensor layout for unrecognized location from A7's data core 11475 | -6/Cetus | Started Cetus Manufacturing Module 11500 | -6/Cetus | Manufactured an Enhanced Grunt 11525 | -6/Cetus | Manufactured an Enhanced Grunt 11550 | -6/Cetus | Manufactured an Enhanced Grunt 11575 | -6/Cetus | Manufactured an Enhanced Grunt 11578 | -6/Cetus | Discovered new exit (range 16) 11579 | -6/Cetus | Cetus Manufacturing Module disabled 11611 | -6/Cetus | Spotted Cetus Guard 11612 | -6/Cetus | Spotted Cetus Guard 11612 | -6/Cetus | Spotted Cetus Guard 11636 | -6/Cetus | Allies destroyed Cetus Guard 11643 | -6/Cetus | Allies destroyed Cetus Guard 11648 | -6/Cetus | Allies destroyed Cetus Guard 11649 | -6/Cetus | Spotted Cetus Guard 11653 | -6/Cetus | Destroyed Cetus Guard 11696 | -6/Cetus | Entered Archives 11696 | -6/Archives | Accompanied by 3 allies 11799 | -6/Archives | Discovered new exit (range 15) 11812 | -6/Archives | Discovered new exit (range 16) 12184 | -6/Archives | Discovered exit to Factory (range 15) 12247 | -6/Archives | Entered Hub_04(d) 12350 | -6/Hub_04(d) | Network Hub disabled 12373 | -6/Hub_04(d) | Network Hub disabled 12383 | -6/Hub_04(d) | Entered Factory 12383 | -5/Factory | Accompanied by 2 allies 12383 | -5/Factory | Evolved 2 slots: Power x1, Propulsion x1 12384 | -5/Factory | Identified exit to Upper Caves 12453 | -5/Factory | Identified exit to Factory 12558 | -5/Factory | Fabricated Exp. Utility Shielding (x1) 12642 | -5/Factory | Fabricated Combat Drone Bay? 12782 | -5/Factory | Local fabrication network quarantined 12851 | -5/Factory | Entered Upper Caves 12851 | -5/Upper Caves | Accompanied by 2 allies 12908 | -5/Upper Caves | Learned location of 1 exit from Factory 13013 | -5/Upper Caves | Discovered new exit (range 14) 13026 | -5/Upper Caves | Entered another Upper Caves area 13026 | -5/Upper Caves | Accompanied by 2 allies 13132 | -5/Upper Caves | Encountered a Warlord checkpoint 13151 | -5/Upper Caves | Discovered new exit (range 15) 13169 | -5/Upper Caves | Entered Zhirov 13169 | -5/Zhirov | Accompanied by 3 allies 13169 | -5/Zhirov | Discovered new exit (range 3) 13176 | -5/Zhirov | Met Zhirov 13183 | -5/Zhirov | Learned location of Quarantine (-3) 13183 | -5/Zhirov | Learned location of Testing (-2) 13183 | -5/Zhirov | Learned location of Command (-1) 13187 | -5/Zhirov | Zhirov requested help retrieving the SGEMP Prototype 13193 | -5/Zhirov | Found Alien Artifact 13193 | -5/Zhirov | Identified Integrated Dissipator 13193 | -5/Zhirov | Installed Integrated Dissipator, increased core heat dissipation (+20) 13200 | -5/Zhirov | Found Alien Artifact 13249 | -5/Zhirov | Entered Proximity Caves 13249 | -4/Proximity Caves | Accompanied by 3 allies 13373 | -4/Proximity Caves | Spotted B-86 Titan 13383 | -4/Proximity Caves | Discovered exit to Factory (range 14) 13387 | -4/Proximity Caves | Learned location of 1 exit from Upper Caves 13388 | -4/Proximity Caves | Destroyed 8 combat bots 13389 | -4/Proximity Caves | Entered Factory 13389 | -4/Factory | Accompanied by 2 allies 13389 | -4/Factory | Evolved 2 slots: Utility x2 13390 | -4/Factory | Identified exit to Upper Caves 13483 | -4/Factory | Fabricated Mni. Smartbomb Launcher (x1) 13567 | -4/Factory | Fabricated Combat Drone Bay (x1) 13578 | -4/Factory | Identified Transdimensional Reconstructor 13589 | -4/Factory | Local fabrication network quarantined 13639 | -4/Factory | First assault squad dispatched 13651 | -4/Factory | Fabricated Combat Drone Bay (x1) 13689 | -4/Factory | Discovered exit to Upper Caves (range 12) 13694 | -4/Factory | Build established: Wizard-Scout 13753 | -4/Factory | Identified exit to Research 13943 | -4/Factory | Entered Upper Caves 13943 | -4/Upper Caves | Accompanied by 8 allies 13944 | -4/Upper Caves | Identified exit to Upper Caves 14000 | -4/Upper Caves | Encountered a Warlord checkpoint 14056 | -4/Upper Caves | Learned Research security intel 14111 | -4/Upper Caves | Learned 12 Research zone layouts 14242 | -4/Upper Caves | Build established: Wizard-Mutant 14249 | -4/Upper Caves | Entered another Upper Caves area 14249 | -4/Upper Caves | Accompanied by 10 allies 14529 | -4/Upper Caves | Learned location of 1 exit from Research 14545 | -4/Upper Caves | Discovered new exit (range 16) 14556 | -4/Upper Caves | Spotted B-86 Titan 14655 | -4/Upper Caves | Entered Warlord 14655 | -4/Warlord | Accompanied by 12 allies 14720 | -4/Warlord | Discovered new exit (range 40) 14791 | -4/Warlord | Found Prototype Device 14900 | -4/Warlord | Met Warlord 14903 | -4/Warlord | Opened Warlord's prototype stash 14915 | -4/Warlord | Found Prototype Reactor 14915 | -4/Warlord | Identified Vortex Chain Reactor 14925 | -4/Warlord | Warlord's base attacked by MAIN.C 14946 | -4/Warlord | Found Prototype Piercing Weapon 14946 | -4/Warlord | Identified Vortex Lance 15078 | -4/Warlord | Allies destroyed B-90 Cyclops 15158 | -4/Warlord | Warlord forces counterattacked 15228 | -4/Warlord | Spotted B-90 Cyclops 15231 | -4/Warlord | Spotted Striker 15232 | -4/Warlord | Spotted Striker 15233 | -4/Warlord | Spotted B-86 Titan 15244 | -4/Warlord | Allies destroyed B-86 Titan 15249 | -4/Warlord | Allies destroyed Striker 15328 | -4/Warlord | Spotted Striker 15328 | -4/Warlord | Spotted Striker 15328 | -4/Warlord | Spotted Executioner 15338 | -4/Warlord | Allies destroyed Striker 15425 | -4/Warlord | Spotted Executioner 15425 | -4/Warlord | Spotted B-90 Cyclops 15427 | -4/Warlord | Spotted B-86 Titan 15427 | -4/Warlord | Spotted Executioner 15429 | -4/Warlord | Allies destroyed Executioner 15435 | -4/Warlord | Allies destroyed B-90 Cyclops 15525 | -4/Warlord | Spotted Striker 15526 | -4/Warlord | Spotted Striker 15526 | -4/Warlord | Spotted Executioner 15527 | -4/Warlord | Spotted Striker 15532 | -4/Warlord | Destroyed Executioner 15600 | -4/Warlord | Warlord base infiltrated, sounded retreat 15656 | -4/Warlord | Spotted Striker 15709 | -4/Warlord | Spotted Executioner 15825 | -4/Warlord | Spotted Striker 15825 | -4/Warlord | Spotted Striker 15825 | -4/Warlord | Spotted Striker 15907 | -4/Warlord | Entered Proximity Caves 15907 | -3/Proximity Caves | Accompanied by 1 ally 16042 | -3/Proximity Caves | Destroyed 10 combat bots 16145 | -3/Proximity Caves | Discovered exit to Research (range 16) 16152 | -3/Proximity Caves | Entered Research 16152 | -3/Research | Accompanied by 2 allies 16152 | -3/Research | Evolved 2 slots: Utility x2 16153 | -3/Research | Identified exit to Quarantine 16211 | -3/Research | Discovered new exit (range 5) 16218 | -3/Research | Found Gamma Bomb Array 16236 | -3/Research | Identified Wardrone Bay 16283 | -3/Research | Identified exit to Armory 16286 | -3/Research | Quantum Router fried by hacking feedback 16337 | -3/Research | Identified exit to Research 16894 | -3/Research | Garrison activated, responded to threat 16921 | -3/Research | Entered Armory 16921 | -3/Armory | Accompanied by 1 ally 17058 | -3/Armory | Fabricated Femtoactuators? 17062 | -3/Armory | Warped through subspace to slip node 17062 | -3/Armory | Discovered new exit (range 1) 17062 | -3/Armory | Identified exit to Lab 17104 | -3/Armory | Fabricated Cmb. Linear Gravjet? 17125 | -3/Armory | Found Prototype Device 17125 | -3/Armory | Identified EM Disruption Field 17144 | -3/Armory | Fabricated Exp. Utility Shielding? 17206 | -3/Armory | Fabricated P-70 Sage? 17268 | -3/Armory | Fabricated P-70 Sage? 17388 | -3/Armory | Fabricated Mni. Fusion Reactor (x1) 17400 | -3/Armory | Fabricated P-70 Sage? 17439 | -3/Armory | Fabricated Nanosword? 17455 | -3/Armory | Assisted by bots powering up and referring to "LRC-V3" 17517 | -3/Armory | Sage 8c assimilated hostile X-82 Rainmaker 17518 | -3/Armory | Found Prototype Processor 17518 | -3/Armory | Identified Exp. Signal Interpreter 17523 | -3/Armory | Found Exp. Signal Interpreter 17528 | -3/Armory | Discovered exit to Research (range 11) 17672 | -3/Armory | Fabricated Exp. Armor Integrity Analyzer (x1) 17717 | -3/Armory | Local fabrication network quarantined 17733 | -3/Armory | Fabricated Nanosword (x1) 17910 | -3/Armory | Entered Lab 17910 | -3/Lab | Accompanied by 3 allies 17913 | -3/Lab | Discovered exit to Research (range 9) 17920 | -3/Lab | Hidden lab's door opened automatically 17920 | -3/Lab | Sensor layout match revealed 17921 | -3/Lab | Gained access to the hidden lab's interior 17983 | -3/Lab | Found Integrated Dissipator 17983 | -3/Lab | Installed Integrated Dissipator, increased core heat dissipation (+20) 18041 | -3/Lab | Found Quantum Router 18043 | -3/Lab | Found Prototype Protection 18043 | -3/Lab | Identified Exp. Powered Armor 18045 | -3/Lab | Detected by scanners 18046 | -3/Lab | Found Prototype Energy Cannon 18048 | -3/Lab | Found Prototype Energy Gun 18048 | -3/Lab | Identified Tachyon Dispersion Ray 18068 | -3/Lab | Confronted by A5 18109 | -3/Lab | Destroyed A5 18126 | -3/Lab | Found Alien Artifact 18131 | -3/Lab | Found Transdimensional Reconstructor 18138 | -3/Lab | Found Core Expander 18138 | -3/Lab | Installed Core Expander, added new Propulsion slot 18207 | -3/Lab | Entered Research 18207 | -2/Research | Warlord forces began assault on 0b10 18207 | -2/Research | Evolved 2 slots: Utility x2 18305 | -2/Research | Identified exit to Testing 18317 | -2/Research | Research machine network offline 18326 | -2/Research | Met up with Warlord 18328 | -2/Research | Destroyed 9 combat bots 18328 | -2/Research | Found Exp. Melee Analysis Suite 18546 | -2/Research | Discovered new exit (range 9) 18561 | -2/Research | Entered Access 18561 | -1/Access | Evolved 1 slot: Utility x1 18585 | -1/Access | Found Gamma Bomb Array 18593 | -1/Access | Fabricated Cmb. Linear Gravjet (x2) 18607 | -1/Access | Fabricated Powered Armor (x2) 18621 | -1/Access | Fabricated Powered Armor? 18647 | -1/Access | Fabricated Powered Armor (x2) 18661 | -1/Access | Fabricated Powered Armor? 18671 | -1/Access | Found Prototype Device 18708 | -1/Access | Identified exit to Command 18728 | -1/Access | Entered Command 18728 | -1/Command | Accompanied by 2 allies 18766 | -1/Command | Repaired Exp. Utility Shielding 18856 | -1/Command | Disengaged cave seal 18856 | -1/Command | Found Antimissile System 18862 | -1/Command | Welcomed Warlord to Command 18935 | -1/Command | Spotted M Guard 18935 | -1/Command | Spotted M Guard 18937 | -1/Command | Spotted Combat Programmer 18943 | -1/Command | Spotted Combat Programmer 18953 | -1/Command | Warlord commented on Warlord statues 19012 | -1/Command | Destroyed Combat Programmer 19021 | -1/Command | Destroyed M Guard 19021 | -1/Command | All MAIN.C guards destroyed 19059 | -1/Command | Identified Core Reset Matrix 19059 | -1/Command | Used Core Reset Matrix 19119 | -1/Command | Met MAIN.C 19121 | -1/Command | Warlord shut down involuntarily 19122 | -1/Command | 0b10 Conduit disabled 19127 | -1/Command | Allies destroyed MAIN.C Shell 19128 | -1/Command | MAIN.C activated Command garrisons 19147 | -1/Command | Allies destroyed MAIN.C 19152 | -1/Command | Found Prototype Reactor 19152 | -1/Command | Identified Zero-point Reactor 19155 | -1/Command | Found Prototype Processor 19217 | -1/Command | Build established: Machinist-Mutant 19422 | -1/Command | Spotted B-99 Colossus 19434 | -1/Command | Allies destroyed B-99 Colossus 19536 | -1/Command | Discovered new exit (range 13) 19598 | -1/Command | Attacked by Warlord forces 19661 | -1/Command | Allies destroyed Executioner 19709 | -1/Command | Spotted Executioner 19712 | -1/Command | Allies destroyed Executioner 19868 | -1/Command | Identified Exp. Target Analyzer 19974 | -1/Command | Found Prototype Device 20097 | -1/Command | Identified Exp. Shock Absorption System 20138 | -1/Command | Found Prototype Launcher 20172 | -1/Command | Identified Gui. Micro-nuke Launcher 20302 | -1/Command | Warped through subspace to slip node 20302 | -1/Command | Discovered new exit (range 4) 20310 | -1/Command | Entered Access_0 20311 | -1/Access_0 | Sensed 4 artifacts in vicinity 20311 | -1/Access_0 | Met Architect 20323 | -1/Access_0 | Architect warped through subspace 20327 | -1/Access_0 | Allies destroyed A8 20337 | -1/Access_0 | Found Prototype Device 20337 | -1/Access_0 | Identified Exp. Focal Shield 20384 | -1/Access_0 | Architect warped through subspace 20386 | -1/Access_0 | Found Prototype Protection 20396 | -1/Access_0 | Subspace Access Node disabled 20433 | -1/Access_0 | Architect warped through subspace 20440 | -1/Access_0 | A6 warped into view 20455 | -1/Access_0 | Destroyed A6 20462 | -1/Access_0 | Subspace Access Node disabled 20473 | -1/Access_0 | Architect warped through subspace 20509 | -1/Access_0 | Architect warped through subspace 20535 | -1/Access_0 | Architect warped through subspace 20562 | -1/Access_0 | Architect warped through subspace 20590 | -1/Access_0 | Architect warped through subspace 20616 | -1/Access_0 | Architect warped through subspace 20641 | -1/Access_0 | Architect warped through subspace 20645 | -1/Access_0 | Subspace Access Node disabled 20665 | -1/Access_0 | Architect warped through subspace 20676 | -1/Access_0 | Architect warped through subspace 20682 | -1/Access_0 | Architect warped through subspace 20684 | -1/Access_0 | Subspace Access Node disabled 20709 | -1/Access_0 | Found Sigix Broadsword 20854 | -1/Access_0 | Lost 7 parts (3n4u) 20861 | -1/Access_0 | Found Prototype Device 20861 | -1/Access_0 | Identified Exp. Thermal Shield 20900 | -1/Access_0 | Found Prototype Protection 20900 | -1/Access_0 | Identified Centrium Linked Plating 20919 | -1/Access_0 | Found Centrium Linked Plating 21017 | -1/Access_0 | Found Prototype Device 21017 | -1/Access_0 | Identified Desublimator 21021 | -1/Access_0 | Core integrity fell below 50% 21071 | -1/Access_0 | Found Centrium Linked Plating 21077 | -1/Access_0 | Found Prototype Processor 21077 | -1/Access_0 | Identified Exp. Targeting Computer 21090 | -1/Access_0 | Found Exp. Melee Analysis Suite 21200 | -1/Access_0 | Build established: Scavenger-Sprinter 21208 | -1/Access_0 | A4 warped into view 21304 | -1/Access_0 | Found Centrium Linked Plating 21462 | -1/Access_0 | Destroyed A4 21494 | -1/Access_0 | Found Gui. Micro-nuke Launcher 21520 | -1/Access_0 | Found Exp. Shock Absorption System 21537 | -1/Access_0 | Found Prototype Slashing Weapon 21537 | -1/Access_0 | Identified Centrium Greatsword 21551 | -1/Access_0 | Found Centrium Linked Plating 21576 | -1/Access_0 | Build established: Scavenger-Gladiator 21587 | -1/Access_0 | Destroyed A2 21589 | -1/Access_0 | Extracted Singularity Gate Test 138-C access codes from A2's data core 21596 | -1/Access_0 | Found Prototype Device 21596 | -1/Access_0 | Identified Exp. Thermal Defense Suite 21786 | -1/Access_0 | A3 warped into view 21819 | -1/Access_0 | Destroyed A3 21905 | -1/Access_0 | Destroyed 7 combat bots 21996 | -1/Access_0 | Destroyed Architect 21997 | -1/Access_0 | Architect triggered a singularity event 21997 | -1/Access_0 | Found Hpw. Transdimensional Reconstructor 21997 | -1/Access_0 | Warped through subspace to slip node 21997 | -1/Access_0 | Discovered new exit (range 8) 22002 | *** | Escaped singularity! Last Messages --------------- 21948_ System corrupted: Matter fused (-9). 21970_ Dropped Centrium Greatsword. 21971_ Acquired Nanosword. 21975_ Penetrated by Quantum Shear. 21981_ Destroyed Modified Quantum Sheargun. 21985_ Destroyed Zero-point Reactor. 21988_ Nanosword follow-up attack on Architect. 21988_ Destroyed Prototype Hackware. 21992_ Nanosword follow-up attack on Architect. 21996_ Architect: "If I can't win, no one wins!" 21996_ Architect destroyed. 21997_ A0_COM: Initiating irreversible singularity event. Goodbye. 21997_ Acquired Hpw. Transdimensional Reconstructor. 21997_ Warped through subspace, drawn to slip node. 21997_ EXIT=FOUND 21998_ A0_COM: 10. 21999_ A0_COM: 9. 22000_ A0_COM: 8. 22001_ A0_COM: 7. 22002_ A0_COM: 6. Map ----- +----------------------------------------------------+ | | | | | | | | | | | | | | | | | | | | | | | | | | | | | | | | | ?????????????????????????????????????????????????? | | ?????????????????????????????????????????????????? | | ?????????????????????????????????????????????????? | | ?????????????????????????????????????????????????? | | ?????????????????????????????????????????????????? | | ?????????????????????????????????????????????????? | | ????????????????????????###??????????????????????? | | ???????????????????????## ##?????????????????????? | | ???????????????????????# #?????????????????????? | | ???????????????????????# @ #?????????????????????? | | ??????????????????????## #?????????????????????? | | ??????????????????????# #?????????????????????? | | ??????????????????????# ##?????????????????????? | | ??????????????????????## #?????????????????????? | | ??????????????????????# #?????????????????????? | | ??????????????????????# ##?????????????????????? | | ??????????????????????# < #?????????????????????? | | ??????????????????????# ##?????????????????????? | | ??????????????????????## #??????????????????????? | | ???????????????????????####??????????????????????? | | ?????????????????????????????????????????????????? | | ?????????????????????????????????????????????????? | | ?????????????????????????????????????????????????? | | ?????????????????????????????????????????????????? | | ?????????????????????????????????????????????????? | | ?????????????????????????????????????????????????? | | ?????????????????????????????????????????????????? | | ?????????????????????????????????????????????????? | | ?????????????????????????????????????????????????? | | ?????????????????????????????????????????????????? | | ?????????????????????????????????????????????????? | | ?????????????????????????????????????????????????? | | ?????????????????????????????????????????????????? | | ?????????????????????????????????????????????????? | +----------------------------------------------------+ Best States ------------- Heat Dissipation 182 Energy Generation 110 Energy Capacity 1950 Matter Stores 700 Matter Capacity 700 Sight Range 22 Robot Scan Range 22 Terrain Scan Range 24 Terrain Scan Density 60 Power Amplification 120 Additional Mass Support 25 Armor Coverage 2500 Resistance: KI 30 Resistance: TH 30 Resistance: EX 75 Resistance: EM 50 Power Shielding 90 Propulsion Shielding 66 Utility Shielding 90 Point Defense Rating 240 Weapon Cycling 15 Melee Speed Boost 50 Phase Shifting 15 Evasion (%) 76 Melee Accuracy 24 Armor Integrity Analysis 90 Recoil Reduction 3 Matter Filtering 30 Particle Charging 25 Salvage Targeting 4 Offensive Hacking 69 Defensive Hacking 57 Item Schematics ----------------- None Robot Schematics ------------------ None Fabricated ------------ Plasma Cutter | x3 | -7/Factory Exp. Utility Shielding | x1 | -5/Factory Combat Drone Bay | x1 | -5/Factory Mni. Smartbomb Launcher | x1 | -4/Factory Combat Drone Bay | x1 | -4/Factory Combat Drone Bay | x1 | -4/Factory Femtoactuators | x1 | -3/Armory Cmb. Linear Gravjet | x2 | -3/Armory Exp. Utility Shielding | x1 | -3/Armory P-70 Sage | x2 | -3/Armory P-70 Sage | x2 | -3/Armory Mni. Fusion Reactor | x1 | -3/Armory P-70 Sage | x2 | -3/Armory Nanosword | x1 | -3/Armory Exp. Armor Integrity Analyzer | x1 | -3/Armory Nanosword | x1 | -3/Armory Cmb. Linear Gravjet | x2 | -1/Access Powered Armor | x2 | -1/Access Powered Armor | x2 | -1/Access Powered Armor | x2 | -1/Access Powered Armor | x2 | -1/Access Alien Tech Used ----------------- Core Expander Integrated Dissipator Transdimensional Reconstructor Core Reset Matrix Sigix Broadsword High-powered Transdimensional Reconstructor Achievements -------------- None Challenges ------------ None Game ------ Seed ModifiedDroneTearclaws Manual? 0 Play Time 04:33:49 Cumulative 1792.0 hours Start 2020.11.12 @ 15:04:22 End 2020.11.12 @ 20:02:18 Sessions 1 Manual Loads 0 Difficulty Rogue Special Mode None Game No. 2511 Rogue 2503 Adventurer 0 Explorer 8 Win Type 6 Total 178 Types 41/24/71/3/3/5/28/2/1 Lore% 99 Gallery% 99 Achievement% 100 Wizard Run 0 Options --------- ASCII 0 Keyboard 1 Movement Numpad Keybinds 1 Fullscreen 1 Font 18/SmallcapsGlow Map View 76x50 Tactical HUD 1 Map Filters NONE Filters NONE Steam 1 RUN: 669763d5-a0b7-4522-bb11-bc2d490dee4e